Workbook

Sheet Sheet1
A1: country | B1: year | C1: base_ifdi | D1: base_ESDF | E1: base_CF | F1: base_EARDF | G1: base_ERDF | H1: base_ESF | I1: base_gfcf | J1: base_fdirestrict | K1: base_emprate | L1: base_eprc | M1: base_epc | N1: base_eptc | O1: base_fdistock | P1: base_stockratio | Q1: base_inflation | R1: base_pppusd | S1: base_reer | T1: base_cpi2010 | U1: base_pop | V1: base_emp | W1: base_hc | X1: base_csh_x | Y1: base_csh_m | Z1: base_gdp | AA1: base_lcusd | AB1: eurousd | AC1: fdirestrict | AD1: ESDF | AE1: diff_ESDF | AG1: gdp | AH1: ratio
A2: Austria | B2: 2003 | C2: 7098252090 | D2: 242717721 | F2: 17662258 | G2: 143037510 | H2: 82017953 | I2: 62866.2282 | J2: 0.149 | L2: 2.369048 | M2: 2.620748 | N2: 1.3125 | Q2: 0.01355554 | R2: 0.889153 | S2: 99.25577902 | T2: 87.49607261 | U2: 8.175851822 | V2: 3.806158543 | W2: 3.165887117 | X2: 0.5282533765 | Y2: -0.5539573431 | Z2: 260767.9054 | AA2: 0.886034 | AB2: 0.886034 | AC2: 0.149 | AD2: =D2/AB2/(Z2*1000000)*100 -> 0.1050502184 | AF2: =C2 -> 7098252090 | AG2: =Z2*1000000 -> 260767905400 | AH2: =AF2/AG2*100 -> 2.722057409
A3: Austria | B3: 2004 | C3: 3892054627 | D3: 274960322 | F3: 13446718 | G3: 136462764 | H3: 125050840 | I3: 65052.8768 | L3: 2.369048 | M3: 2.620748 | N3: 1.3125 | Q3: 0.02061207 | R3: 0.878879 | S3: 100.5774719 | T3: 89.29954476 | U3: 8.216805458 | V3: 3.825345755 | W3: 3.182343006 | X3: 0.5935964584 | Y3: -0.6098943949 | Z3: 275747.0012 | AA3: 0.805365 | AB3: 0.805365 | AC3: 0.149 | AD3: =D3/AB3/(Z3*1000000)*100 -> 0.1238130659 | AE3: =AD3-AD2 -> 0.01876284748 | AF3: =C3 -> 3892054627 | AG3: =Z3*1000000 -> 275747001200 | AH3: =AF3/AG3*100 -> 1.411458551
A4: Austria | B4: 2005 | C4: 8.12879163e+10 | D4: 279692122 | F4: 20785432 | G4: 120575887 | H4: 138330803 | I4: 66410.0846 | L4: 2.369048 | M4: 2.620748 | N4: 1.3125 | O4: 83770.73062 | P4: 0.2651252715 | Q4: 0.02299138 | R4: 0.881939 | S4: 99.53976029 | T4: 91.35266526 | U4: 8.253649712 | V4: 3.862365246 | W4: 3.19888401 | X4: 0.5910762548 | Y4: -0.6034796238 | Z4: 288086.7221 | AA4: 0.80412 | AB4: 0.80412 | AC4: 0.149 | AD4: 0.1207358177 | AE4: =AD4-AD3 -> -0.00307724816 | AF4: 8.12879163e+10 | AG4: 288086722100 | AH4: 28.21647444
A5: Austria | B5: 2006 | C5: 1.04974472e+10 | D5: 247345453 | F5: 16824064 | G5: 118605819 | H5: 111915570 | I5: 70309.1074 | J5: 0.149 | L5: 2.369048 | M5: 2.620748 | N5: 1.3125 | O5: 113347.8204 | P5: 0.3373634793 | Q5: 0.01441547 | R5: 0.860918 | S5: 98.93139907 | T5: 92.66955683 | U5: 8.284734726 | V5: 3.925340891 | W5: 3.215510845 | X5: 0.6295216084 | Y5: -0.6399440765 | Z5: 311091.8412 | AA5: 0.797141 | AB5: 0.797141 | AC5: 0.149 | AD5: 0.09974248007 | AE5: -0.02099333764 | AF5: 1.04974472e+10 | AG5: 311091841200 | AH5: 3.374388462
A6: Austria | B6: 2007 | C6: 6.888535964e+10 | D6: 649430937 | F6: 473108278 | G6: 134902622 | H6: 41420037 | I6: 74888.3296 | L6: 2.369048 | M6: 2.620748 | N6: 1.3125 | O6: 164585.6028 | P6: 0.4234568339 | Q6: 0.02168556 | R6: 0.869018 | S6: 100 | T6: 94.67914806 | U6: 8.311782837 | V6: 3.997132301 | W6: 3.232224703 | X6: 0.6479749084 | Y6: -0.663259089 | Z6: 326780.2903 | AA6: 0.730638 | AB6: 0.730638 | AC6: 0.149 | AD6: 0.2720037323 | AE6: 0.1722612522 | AF6: 6.888535964e+10 | AG6: 326780290300 | AH6: 21.08002278
A7: Austria | B7: 2008 | C7: 6310797391 | D7: 669067863 | F7: 532204125 | G7: 108914904 | H7: 27948834 | I7: 80027.5093 | K7: 0.70825 | L7: 2.369048 | M7: 2.620748 | N7: 1.3125 | O7: 150658.3159 | P7: 0.3501156048 | Q7: 0.03215951 | R7: 0.854424 | S7: 100.7883419 | T7: 97.72398234 | U7: 8.338453293 | V7: 4.073532581 | W7: 3.249024868 | X7: 0.6486024261 | Y7: -0.6945598722 | Z7: 343812.9764 | AA7: 0.682675 | AB7: 0.682675 | AC7: 0.149 | AD7: 0.2850584419 | AE7: 0.01305470966 | AF7: 6310797391 | AG7: 343812976400 | AH7: 1.835532055
A8: Austria | B8: 2009 | C8: 1.429321343e+10 | D8: 763547482 | F8: 577972459 | G8: 76118421 | H8: 109456602 | I8: 76532.1343 | K8: 0.70325 | L8: 2.369048 | M8: 2.620748 | N8: 1.3125 | O8: 174486.3852 | P8: 0.436054405 | Q8: 0.005063094 | R8: 0.843558 | S8: 100.9091806 | T8: 98.21876703 | U8: 8.370038033 | V8: 4.056693077 | W8: 3.265912771 | X8: 0.5388045311 | Y8: -0.5921877027 | Z8: 341463.0176 | AA8: 0.719843 | AB8: 0.719843 | AC8: 0.149 | AD8: 0.3106380058 | AE8: 0.02557956387 | AF8: 1.429321343e+10 | AG8: 341463017600 | AH8: 4.185874515
A9: Austria | B9: 2010 | C9: -2.200559716e+10 | D9: 665662179 | F9: 545844869 | G9: 67221854 | H9: 52595456 | I9: 75872.2485 | J9: 0.106 | K9: 0.70775 | L9: 2.369048 | M9: 2.620748 | N9: 1.3125 | O9: 166477.8193 | P9: 0.4248045941 | Q9: 0.01813532 | R9: 0.842258 | S9: 97.72743963 | T9: 100 | U9: 8.409949303 | V9: 4.096951008 | W9: 3.282888174 | X9: 0.5745723248 | Y9: -0.6341096163 | Z9: 351313.6961 | AA9: 0.755045 | AB9: 0.755045 | AC9: 0.106 | AD9: 0.2509492864 | AE9: -0.0596887194 | AF9: -2.200559716e+10 | AG9: 351313696100 | AH9: -6.263802808
A10: Austria | B10: 2011 | C10: 2.297439029e+10 | D10: 634894395 | F10: 492807971 | G10: 98356625 | H10: 43729799 | I10: 83826.5721 | J10: 0.106 | K10: 0.711 | L10: 2.369048 | M10: 2.620748 | N10: 1.3125 | O10: 158862.7248 | P10: 0.368488157 | Q10: 0.03286583 | R10: 0.831374 | S10: 98.37905304 | T10: 103.286582 | U10: 8.459863663 | V10: 4.171281338 | W10: 3.293652296 | X10: 0.6151044965 | Y10: -0.7131832242 | Z10: 373031.477 | AA10: 0.719355 | AB10: 0.719355 | AC10: 0.106 | AD10: 0.2365989139 | AE10: -0.01435037254 | AF10: 2.297439029e+10 | AG10: 373031477000 | AH10: 6.15883423
A11: Austria | B11: 2012 | C11: 5219630177 | D11: 690423066 | F11: 528868303 | G11: 33942111 | H11: 127612652 | I11: 88702.5977 | J11: 0.106 | K11: 0.71425 | L11: 2.369048 | M11: 2.620748 | N11: 1.3125 | O11: 171696.5699 | P11: 0.4193600441 | Q11: 0.02485675 | R11: 0.813648 | S11: 96.67147406 | T11: 105.8539492 | U11: 8.517547607 | V11: 4.224022865 | W11: 3.304451942 | X11: 0.5704274774 | Y11: -0.6706498265 | Z11: 391635.1762 | AA11: 0.778294 | AB11: 0.778294 | AC11: 0.106 | AD11: 0.2265113231 | AE11: -0.01008759072 | AF11: 5219630177 | AG11: 391635176200 | AH11: 1.332778692
A12: Austria | B12: 2013 | C12: 451322440.3 | D12: 758696397 | F12: 548603598 | G12: 90110164 | H12: 119982635 | I12: 93628.5072 | J12: 0.106 | K12: 0.714 | L12: 2.369048 | M12: 2.620748 | N12: 1.3125 | O12: 186590.8151 | P12: 0.4338628109 | Q12: 0.02000158 | R12: 0.797081 | S12: 99.18315094 | T12: 107.9711964 | U12: 8.577781677 | V12: 4.243587971 | W12: 3.315286875 | X12: 0.6016831994 | Y12: -0.7032459378 | Z12: 406370.2445 | AA12: 0.753159 | AB12: 0.753159 | AC12: 0.106 | AD12: 0.2478902533 | AE12: 0.02137893015 | AF12: 451322440.3 | AG12: 406370244500 | AH12: 0.1110618817
A13: Austria | B13: 2014 | C13: 1712374349 | D13: 353337179 | F13: 221068392 | G13: 81839971 | H13: 50428816 | I13: 94507.9911 | J13: 0.106 | K13: 0.71075 | O13: 182784.9945 | P13: 0.4135443605 | Q13: 0.01605806 | R13: 0.798797 | S13: 100.518417 | T13: 109.7050023 | U13: 8.633219719 | V13: 4.278066158 | W13: 3.326157331 | X13: 0.5806996226 | Y13: -0.6405091882 | Z13: 417059.5187 | AA13: 0.753731 | AB13: 0.753731 | AC13: 0.106 | AD13: 0.1124022286 | AE13: -0.1354880247 | AF13: 1712374349 | AG13: 417059518700 | AH13: 0.4105827279
A14: Austria | B14: 2015 | C14: -7972751913 | D14: 208555903 | F14: 58267521 | G14: 150288382 | I14: 97837.9549 | J14: 0.106 | K14: 0.711 | O14: 165845.4001 | P14: 0.4343712001 | Q14: 0.008965653 | R14: 0.798599 | S14: 97.65147945 | T14: 110.6885793 | U14: 8.678656578 | V14: 4.278058529 | W14: 3.337063313 | X14: 0.5234493017 | Y14: -0.5785251856 | Z14: 431078.1342 | AA14: 0.901659 | AB14: 0.901659 | AC14: 0.106 | AD14: 0.05365672608 | AE14: -0.05874550251 | AF14: -7972751913 | AG14: 431078134200 | AH14: -1.849491143
A15: Austria | B15: 2016 | C15: -2.887260773e+10 | D15: 21339770 | G15: 21339770 | I15: 104800.5719 | J15: 0.106 | K15: 0.7155 | O15: 157936.1231 | P15: 0.4007993932 | Q15: 0.008915924 | R15: 0.789364 | S15: 98.81600033 | T15: 111.6754703 | U15: 8.712137222 | V15: 4.299792767 | W15: 3.348005295 | X15: 0.5219473839 | Y15: -0.5970929265 | Z15: 451297.2461 | AA15: 0.904035 | AB15: 0.904035 | AC15: 0.106 | AD15: 0.005230483137 | AE15: -0.04842624294 | AF15: -2.887260773e+10 | AG15: 451297246100 | AH15: -6.397691982
A16: Austria | B16: 2017 | C16: 1.560800906e+10 | I16: 111944.5795 | J16: 0.106 | K16: 0.722 | O16: 199944.8309 | P16: 0.4796726552 | Q16: 0.02081269 | R16: 0.780367 | S16: 99.87973136 | T16: 113.9997367 | U16: 8.735452652 | V16: 4.346899986 | W16: 3.35898304 | X16: 0.5386787653 | Y16: -0.6209437251 | Z16: 474006.4924 | AA16: 0.887397 | AB16: 0.887397 | AC16: 0.106 | AD16: 0 | AE16: -0.005230483137 | AF16: 1.560800906e+10 | AG16: 474006492400 | AH16: 3.292783814
A17: Belgium | B17: 2003 | C17: 3.454394206e+10 | D17: 91443519 | F17: 14026061 | G17: 61923950 | H17: 15493508 | I17: 65865.4001 | J17: 0.046 | L17: 1.892857 | M17: 2.816327 | N17: 2.375 | Q17: 0.01588964 | R17: 0.877084 | S17: 97.68497026 | T17: 86.15247972 | U17: 10.4190321 | V17: 4.170265675 | W17: 3.030359507 | X17: 1.077633858 | Y17: -1.04344964 | Z17: 322245.5822 | AA17: 0.886034 | AB17: 0.886034 | AC17: 0.046 | AD17: 0.0320269492 | AE17: 0.0320269492 | AF17: 3.454394206e+10 | AG17: 322245582200 | AH17: 10.7197566
A18: Belgium | B18: 2004 | C18: 4.441518559e+10 | D18: 302466330 | F18: 3365736 | G18: 146445646 | H18: 152654948 | I18: 71733.1171 | L18: 1.892857 | M18: 2.816327 | N18: 2.375 | Q18: 0.02097283 | R18: 0.889136 | S18: 99.44945594 | T18: 87.95934113 | U18: 10.48011684 | V18: 4.217623711 | W18: 3.049509764 | X18: 1.177909851 | Y18: -1.154019356 | Z18: 335956.2372 | AA18: 0.805365 | AB18: 0.805365 | AC18: 0.046 | AD18: 0.1117896449 | AE18: 0.07976269568 | AF18: 4.441518559e+10 | AG18: 335956237200 | AH18: 13.22052716
A19: Belgium | B19: 2005 | C19: 3.368383016e+10 | D19: 333251089 | F19: 7667841 | G19: 129725586 | H19: 195857662 | I19: 77390.933 | L19: 1.892857 | M19: 2.816327 | N19: 2.375 | Q19: 0.02781433 | R19: 0.891788 | S19: 98.94519037 | T19: 90.40587095 | U19: 10.54688644 | V19: 4.282093048 | W19: 3.068781137 | X19: 1.216477036 | Y19: -1.20480144 | Z19: 349276.761 | AA19: 0.80412 | AB19: 0.80412 | AC19: 0.046 | AD19: 0.1186536281 | AE19: 0.006863983231 | AF19: 3.368383016e+10 | AG19: 349276761000 | AH19: 9.643879559
A20: Belgium | B20: 2006 | C20: 5.882769633e+10 | D20: 265370766 | F20: 9478916 | G20: 112956805 | H20: 142935045 | I20: 83403.6082 | J20: 0.042 | L20: 1.892857 | M20: 2.816327 | N20: 2.375 | Q20: 0.01791208 | R20: 0.875177 | S20: 98.83798384 | T20: 92.02522788 | U20: 10.61956692 | V20: 4.331272602 | W20: 3.073569298 | X20: 1.268565774 | Y20: -1.283180356 | Z20: 373252.7108 | AA20: 0.797141 | AB20: 0.797141 | AC20: 0.042 | AD20: 0.08918975283 | AE20: -0.02946387528 | AF20: 5.882769633e+10 | AG20: 373252710800 | AH20: 15.76082226
A21: Belgium | B21: 2007 | C21: 9.658792113e+10 | D21: 361068965 | F21: 55814516 | G21: 131102998 | H21: 174151451 | I21: 91034.4323 | L21: 1.892857 | M21: 2.816327 | N21: 2.375 | Q21: 0.01823056 | R21: 0.879823 | S21: 100 | T21: 93.70289959 | U21: 10.69783497 | V21: 4.402740002 | W21: 3.078364849 | X21: 1.340461731 | Y21: -1.372376084 | Z21: 391797.4928 | AA21: 0.730638 | AB21: 0.730638 | AC21: 0.042 | AD21: 0.1261322819 | AE21: 0.03694252905 | AF21: 9.658792113e+10 | AG21: 391797492800 | AH21: 24.65251129
A22: Belgium | B22: 2008 | C22: 1.905427152e+11 | D22: 413267512 | F22: 63969829 | G22: 144701110 | H22: 204596573 | I22: 97914.2654 | K22: 0.624 | L22: 1.892857 | M22: 2.816327 | N22: 2.375 | Q22: 0.04489444 | R22: 0.86694 | S22: 103.2842329 | T22: 97.90963899 | U22: 10.7791729 | V22: 4.480803013 | W22: 3.08316803 | X22: 1.375810742 | Y22: -1.453501582 | Z22: 408408.7386 | AA22: 0.682675 | AB22: 0.682675 | AC22: 0.042 | AD22: 0.1482252668 | AE22: 0.02209298489 | AF22: 1.905427152e+11 | AG22: 408408738600 | AH22: 46.65490651
A23: Belgium | B23: 2009 | C23: 8.652797614e+10 | D23: 384741995 | F23: 56542638 | G23: 137977340 | H23: 190222017 | I23: 92689.7487 | K23: 0.616 | L23: 1.892857 | M23: 2.816327 | N23: 2.375 | Q23: -0.0005314567 | R23: 0.849935 | S23: 102.9659981 | T23: 97.85760425 | U23: 10.86028957 | V23: 4.470902443 | W23: 3.087978601 | X23: 1.168838739 | Y23: -1.1955055 | Z23: 410361.8861 | AA23: 0.719843 | AB23: 0.719843 | AC23: 0.042 | AD23: 0.1302461185 | AE23: -0.01797914829 | AF23: 8.652797614e+10 | AG23: 410361886100 | AH23: 21.08577309
A24: Belgium | B24: 2010 | C24: 1.114902383e+11 | D24: 214419319 | F24: 80999343 | G24: 120328928 | H24: 13091048 | I24: 95215.3863 | J24: 0.04 | K24: 0.62025 | L24: 2.083333 | M24: 2.952381 | N24: 2.375 | Q24: 0.02189299 | R24: 0.836639 | S24: 99.40878439 | T24: 100 | U24: 10.93873882 | V24: 4.495319843 | W24: 3.092796803 | X24: 1.205268502 | Y24: -1.242825508 | Z24: 436389.5608 | AA24: 0.755045 | AB24: 0.755045 | AC24: 0.04 | AD24: 0.06507538159 | AE24: -0.06517073689 | AF24: 1.114902383e+11 | AG24: 436389560800 | AH24: 25.54832845
A25: Belgium | B25: 2011 | C25: 1.580285658e+11 | D25: 286388104 | F25: 84633356 | G25: 49998558 | H25: 151756190 | I25: 102906.9003 | J25: 0.04 | K25: 0.61925 | L25: 2.083333 | M25: 2.952381 | N25: 2.375 | Q25: 0.03532082 | R25: 0.831911 | S25: 100.1462357 | T25: 103.5320821 | U25: 11.01308346 | V25: 4.54736042 | W25: 3.098995447 | X25: 1.340318799 | Y25: -1.433086753 | Z25: 455705.2637 | AA25: 0.719355 | AB25: 0.719355 | AC25: 0.04 | AD25: 0.08736302487 | AE25: 0.02228764327 | AF25: 1.580285658e+11 | AG25: 455705263700 | AH25: 34.67780129
A26: Belgium | B26: 2012 | C26: 6683318619 | D26: 424182679 | F26: 63886651 | G26: 162724992 | H26: 197571036 | I26: 106638.8536 | J26: 0.04 | K26: 0.61825 | L26: 1.892857 | M26: 2.816327 | N26: 2.375 | O26: 486226.2533 | P26: 0.9765850238 | Q26: 0.02839664 | R26: 0.822137 | S26: 97.66793193 | T26: 106.4720448 | U26: 11.08355045 | V26: 4.567918301 | W26: 3.10520649 | X26: 1.268030047 | Y26: -1.368018985 | Z26: 471332.4746 | AA26: 0.778294 | AB26: 0.778294 | AC26: 0.04 | AD26: 0.1156330244 | AE26: 0.02826999951 | AF26: 6683318619 | AG26: 471332474600 | AH26: 1.417962686
A27: Belgium | B27: 2013 | C27: -2.837520891e+10 | D27: 469060978 | F27: 41385117 | G27: 190879922 | H27: 236795939 | I27: 107848.3833 | J27: 0.04 | K27: 0.618 | L27: 1.892857 | M27: 2.816327 | N27: 2.375 | O27: 482945.8006 | P27: 0.9270918789 | Q27: 0.01113096 | R27: 0.806166 | S27: 99.70788312 | T27: 107.6571808 | U27: 11.15151215 | V27: 4.559353352 | W27: 3.11142993 | X27: 1.301037788 | Y27: -1.388443232 | Z27: 486673.7112 | AA27: 0.753159 | AB27: 0.753159 | AC27: 0.04 | AD27: 0.1279689914 | AE27: 0.01233596706 | AF27: -2.837520891e+10 | AG27: 486673711200 | AH27: -5.830437983
A28: Belgium | B28: 2014 | C28: -2.393111065e+10 | D28: 308935102 | F28: 29173282 | G28: 221290010 | H28: 58471810 | I28: 115170.9911 | J28: 0.04 | K28: 0.619 | O28: 496519.3638 | P28: 0.9354022352 | Q28: 0.003400028 | R28: 0.800214 | S28: 99.67180524 | T28: 108.0232183 | U28: 11.21916103 | V28: 4.58660984 | W28: 3.117666006 | X28: 1.354958653 | Y28: -1.475681543 | Z28: 499974.7211 | AA28: 0.753731 | AB28: 0.753731 | AC28: 0.04 | AD28: 0.08197904076 | AE28: -0.04598995067 | AF28: -2.393111065e+10 | AG28: 499974721100 | AH28: -4.786464124
A29: Belgium | B29: 2015 | C29: -2.426612089e+10 | D29: 164915089 | F29: 11907270 | G29: 58691938 | H29: 94315881 | I29: 118757.346 | J29: 0.04 | K29: 0.618 | O29: 520992.1611 | P29: 1.142933212 | Q29: 0.005614291 | R29: 0.799784 | S29: 95.26490548 | T29: 108.6296921 | U29: 11.28794003 | V29: 4.628816128 | W29: 3.12391448 | X29: 1.196329832 | Y29: -1.291588426 | Z29: 514017.2959 | AA29: 0.901659 | AB29: 0.901659 | AC29: 0.04 | AD29: 0.03558281797 | AE29: -0.0463962228 | AF29: -2.426612089e+10 | AG29: 514017295900 | AH29: -4.720876338
A30: Belgium | B30: 2016 | C30: 4.445592891e+10 | D30: 33316104 | G30: 6608605 | H30: 26707499 | I30: 124907.1899 | J30: 0.04 | K30: 0.623 | O30: 499567.1972 | P30: 1.063500191 | Q30: 0.01973853 | R30: 0.793648 | S30: 97.5583635 | T30: 110.7738822 | U30: 11.35837936 | V30: 4.692302227 | W30: 3.130175591 | X30: 1.230751991 | Y30: -1.317166448 | Z30: 535003.4891 | AA30: 0.904035 | AB30: 0.904035 | AC30: 0.04 | AD30: 0.006888304708 | AE30: -0.02869451326 | AF30: 4.445592891e+10 | AG30: 535003489100 | AH30: 8.309465231
A31: Belgium | B31: 2017 | C31: -3.948227994e+10 | I31: 132021.8747 | J31: 0.04 | K31: 0.63125 | O31: 564313.7443 | P31: 1.140572476 | Q31: 0.02125971 | R31: 0.781355 | S31: 98.88227695 | T31: 113.1289026 | U31: 11.42933559 | V31: 4.757217407 | W31: 3.136449099 | X31: 1.271109343 | Y31: -1.355724573 | Z31: 562067.5562 | AA31: 0.887397 | AB31: 0.887397 | AC31: 0.04 | AD31: 0 | AE31: -0.006888304708 | AF31: -3.948227994e+10 | AG31: 562067556200 | AH31: -7.024472326
A32: Bulgaria | B32: 2003 | C32: 2096788700 | D32: 26351856 | E32: 26351856 | I32: 12947.1772 | R32: 0.560446 | S32: 85.03379922 | T32: 65.22729439 | U32: 7.803881168 | V32: 3.352247715 | W32: 2.955004692 | X32: 0.195867762 | Y32: -0.2942881882 | Z32: 64870.9733 | AA32: 1.732702 | AB32: 0.886034 | AD32: 0.04584694556 | AE32: 0.04584694556 | AF32: 2096788700 | AG32: 64870973300 | AH32: 3.23224486
A33: Bulgaria | B33: 2004 | C33: 3072550962 | D33: 40655019 | E33: 40655019 | I33: 14862.7752 | R33: 0.580778 | S33: 89.41766081 | T33: 69.23690145 | U33: 7.743264198 | V33: 3.437867403 | W33: 2.97293973 | X33: 0.2255998254 | Y33: -0.3453521132 | Z33: 70399.4067 | AA33: 1.575109 | AB33: 0.805365 | AD33: 0.07170549157 | AE33: 0.02585854601 | AF33: 3072550962 | AG33: 70399406700 | AH33: 4.364455762
A34: Bulgaria | B34: 2005 | C34: 4098122931 | D34: 74523745 | E34: 74523745 | I34: 20229.7049 | R34: 0.596502 | S34: 90.68840933 | T34: 72.7256368 | U34: 7.683763027 | V34: 3.528634787 | W34: 2.990983725 | X34: 0.2375694215 | Y34: -0.3855685294 | Z34: 78207.6986 | AA34: 1.574133 | AB34: 0.80412 | AD34: 0.1185016237 | AE34: 0.0467961321 | AF34: 4098122931 | AG34: 78207698600 | AH34: 5.240050537
A35: Bulgaria | B35: 2006 | C35: 7874476255 | D35: 50393822 | E35: 50393822 | I35: 23767.5494 | R35: 0.618867 | S35: 94.48428161 | T35: 78.00667774 | U35: 7.624958992 | V35: 3.643839359 | W35: 3.009137392 | X35: 0.271830678 | Y35: -0.4355363846 | Z35: 85994.4489 | AA35: 1.559267 | AB35: 0.797141 | AD35: 0.07351428419 | AE35: -0.04498733948 | AF35: 7874476255 | AG35: 85994448900 | AH35: 9.156958799
A36: Bulgaria | B36: 2007 | C36: 1.387527046e+10 | D36: 214672104 | E36: 126860258 | G36: 64102648 | H36: 23709198 | I36: 27336.5191 | R36: 0.657064 | S36: 100 | T36: 84.5612155 | U36: 7.566948891 | V36: 3.755251169 | W36: 3.027400732 | X36: 0.2787216306 | Y36: -0.4811623693 | Z36: 96587.2715 | AA36: 1.42905 | AB36: 0.730638 | AD36: 0.3041959721 | AE36: 0.2306816879 | AF36: 1.387527046e+10 | AG36: 96587271500 | AH36: 14.36552689
A37: Bulgaria | B37: 2008 | C37: 1.029672063e+10 | D37: 358866640 | E37: 144772372 | F37: 82376501 | G37: 96153971 | H37: 35563796 | I37: 35451.3503 | R37: 0.67768 | S37: 108.6102396 | T37: 95.0034429 | U37: 7.510331154 | V37: 3.837631702 | W37: 3.045775414 | X37: 0.279903084 | Y37: -0.5212236643 | Z37: 107360.167 | AA37: 1.337117 | AB37: 0.682675 | AD37: 0.4896388972 | AE37: 0.1854429251 | AF37: 1.029672063e+10 | AG37: 107360167000 | AH37: 9.590820247
A38: Bulgaria | B38: 2009 | C38: 3896664559 | D38: 526106111 | E38: 236786199 | F38: 113696225 | G38: 128205293 | H38: 47418394 | I38: 29334.6473 | R38: 0.693056 | S38: 112.262031 | T38: 97.61907981 | U38: 7.456029892 | V38: 3.763475657 | W38: 3.064261198 | X38: 0.2234789878 | Y38: -0.3567515612 | Z38: 105310.2248 | AA38: 1.406692 | AB38: 0.719843 | AD38: 0.6940088694 | AE38: 0.2043699722 | AF38: 3896664559 | AG38: 105310224800 | AH38: 3.70017685
A39: Bulgaria | B39: 2010 | C39: 1842900000 | D39: 811939562 | E39: 124049315 | F39: 295814019 | G39: 349178710 | H39: 42897518 | I39: 24529.4868 | R39: 0.676994 | S39: 109.0242642 | T39: 100 | U39: 7.40459013 | V39: 3.610477686 | W39: 3.082859516 | X39: 0.2622209191 | Y39: -0.3754579425 | Z39: 110445.9535 | AA39: 1.477392 | AB39: 0.755045 | AD39: 0.9736459422 | AE39: 0.2796370727 | AF39: 1842900000 | AG39: 110445953500 | AH39: 1.668598932
A40: Bulgaria | B40: 2011 | C40: 2103810000 | D40: 915869456 | E40: 300820390 | F40: 345283205 | G40: 182421872 | H40: 87343989 | I40: 24099.9589 | R40: 0.701073 | S40: 110.0869963 | T40: 104.2199035 | U40: 7.356213093 | V40: 3.527287483 | W40: 3.094154358 | X40: 0.3362894356 | Y40: -0.4590265453 | Z40: 115193.3673 | AA40: 1.406458 | AB40: 0.719355 | AD40: 1.105255884 | AE40: 0.1316099413 | AF40: 2103810000 | AG40: 115193367300 | AH40: 1.82632911
A41: Bulgaria | B41: 2012 | C41: 1788110000 | D41: 1241676767 | E41: 334855154 | F41: 381149142 | G41: 389640572 | H41: 136031899 | I41: 25177.5254 | R41: 0.692816 | S41: 107.5308113 | T41: 107.2991517 | U41: 7.310382843 | V41: 3.437222242 | W41: 3.105490685 | X41: 0.3167899251 | Y41: -0.4565650225 | Z41: 118415.9404 | AA41: 1.52205 | AB41: 0.778294 | AD41: 1.347270202 | AE41: 0.2420143184 | AF41: 1788110000 | AG41: 118415940400 | AH41: 1.510024743
A42: Bulgaria | B42: 2013 | C42: 1989040000 | D42: 1297939539 | E42: 154198327 | F42: 399780723 | G42: 435678304 | H42: 308282185 | I42: 25536.3047 | R42: 0.680008 | S42: 108.3460274 | T42: 108.2542145 | U42: 7.266140938 | V42: 3.4207232 | W42: 3.116868258 | X42: 0.3522270024 | Y42: -0.4855343103 | Z42: 120389.8475 | AA42: 1.473567 | AB42: 0.753159 | AD42: 1.431455752 | AE42: 0.08418555023 | AF42: 1989040000 | AG42: 120389847500 | AH42: 1.652165894
A43: Bulgaria | B43: 2014 | C43: 1093600000 | D43: 1422020330 | E43: 358906445 | F43: 347015335 | G43: 427816732 | H43: 288281818 | I43: 26697.1967 | R43: 0.661231 | S43: 107.9302182 | T43: 106.7189708 | U43: 7.222145081 | V43: 3.431301355 | W43: 3.128287792 | X43: 0.3375378847 | Y43: -0.4747885764 | Z43: 126666.8371 | AA43: 1.474183 | AB43: 0.753731 | AD43: 1.489451964 | AE43: 0.05799621204 | AF43: 1093600000 | AG43: 126666837100 | AH43: 0.8633672594
A44: Bulgaria | B44: 2015 | C44: 2609370000 | D44: 1336098851 | E44: 527234326 | F44: 68261220 | G44: 595444520 | H44: 145158785 | I44: 27430.7963 | R44: 0.678518 | S44: 103.8251683 | T44: 106.6073072 | U44: 7.177395821 | V44: 3.441656113 | W44: 3.139748812 | X44: 0.3120036423 | Y44: -0.4201620221 | Z44: 130542.1786 | AA44: 1.7644 | AB44: 0.901659 | AD44: 1.135129505 | AE44: -0.3543224593 | AF44: 2609370000 | AG44: 130542178600 | AH44: 1.998871191
A45: Bulgaria | B45: 2016 | C45: 1562800000 | D45: 643932120 | E45: 330874034 | G45: 306994512 | H45: 6063574 | I45: 25817.4579 | R45: 0.677218 | S45: 102.8400138 | T45: 105.7557823 | U45: 7.131494045 | V45: 3.45697093 | W45: 3.151252031 | X45: 0.3062088192 | Y45: -0.3891860843 | Z45: 138995.0651 | AA45: 1.768042 | AB45: 0.904035 | AD45: 0.5124546789 | AE45: -0.6226748259 | AF45: 1562800000 | AG45: 138995065100 | AH45: 1.124356465
A46: Bulgaria | B46: 2017 | C46: 2182120000 | I46: 27456.9133 | R46: 0.681667 | S46: 102.5216723 | T46: 107.9389572 | U46: 7.084570885 | V46: 3.454327345 | W46: 3.162797451 | X46: 0.3150525093 | Y46: -0.4082788229 | Z46: 148228.6263 | AA46: 1.735458 | AB46: 0.887397 | AD46: 0 | AE46: -0.5124546789 | AF46: 2182120000 | AG46: 148228626300 | AH46: 1.472131298
A47: Cyprus | B47: 2003 | C47: 908147518 | D47: 0 | I47: 3534.0842 | R47: 0.737342 | S47: 99.08403653 | T47: 84.61999414 | U47: 0.7178360224 | V47: 0.2892704308 | W47: 2.602983236 | X47: 0.09648367018 | Y47: -0.500970602 | Z47: 17421.0832 | AA47: 0.884104 | AB47: 0.886034 | AD47: 0 | AE47: 0 | AF47: 908147518 | AG47: 17421083200 | AH47: 5.212922225
A48: Cyprus | B48: 2004 | C48: 1118841809 | D48: 5177680 | G48: 2802281 | H48: 2375399 | I48: 3895.8437 | R48: 0.734309 | S48: 101.1123097 | T48: 86.55459089 | U48: 0.7279800177 | V48: 0.3009584248 | W48: 2.619712353 | X48: 0.10926155 | Y48: -0.5862256289 | Z48: 18870.0376 | AA48: 0.800652 | AB48: 0.805365 | AD48: 0.03406980819 | AE48: 0.03406980819 | AF48: 1118841809 | AG48: 18870037600 | AH48: 5.929197558
A49: Cyprus | B49: 2005 | C49: 1161973511 | D49: 8251301 | E49: 5058456 | G49: 1702620 | H49: 1490225 | I49: 4413.8284 | R49: 0.722892 | S49: 100.1607467 | T49: 88.77052805 | U49: 0.7385399938 | V49: 0.3118951321 | W49: 2.636548996 | X49: 0.1284904629 | Y49: -0.580126822 | Z49: 20504.1767 | AA49: 0.792912 | AB49: 0.80412 | AD49: 0.05004483138 | AE49: 0.01597502319 | AF49: 1161973511 | AG49: 20504176700 | AH49: 5.667008864
A50: Cyprus | B50: 2006 | C50: 1872392935 | D50: 13725518 | E50: 6001512 | G50: 5203675 | H50: 2520331 | I50: 5646.806 | R50: 0.710569 | S50: 99.88800114 | T50: 90.81464636 | U50: 0.7509649992 | V50: 0.317674309 | W50: 2.653493881 | X50: 0.1074799672 | Y50: -0.6006949544 | Z50: 22517.194 | AA50: 0.784104 | AB50: 0.797141 | AD50: 0.07646792878 | AE50: 0.0264230974 | AF50: 1872392935 | AG50: 22517194000 | AH50: 8.31539194
A51: Cyprus | B51: 2007 | C51: 2295454940 | D51: 37259964 | E51: 17114366 | F51: 2861291 | G51: 11696856 | H51: 5587451 | I51: 6438.118 | R51: 0.694902 | S51: 100 | T51: 92.96936173 | U51: 0.7671250105 | V51: 0.3317345381 | W51: 2.670547724 | X51: 0.09655119479 | Y51: -0.6407452822 | Z51: 25200.0759 | AA51: 0.728078 | AB51: 0.730638 | AD51: 0.2023663629 | AE51: 0.1258984341 | AF51: 2295454940 | AG51: 25200075900 | AH51: 9.108920739
A52: Cyprus | B52: 2008 | C52: 2337953031 | D52: 59933692 | E52: 17477219 | F52: 12902507 | G52: 18414408 | H52: 11139558 | I52: 7447.7318 | R52: 0.693818 | S52: 102.8555015 | T52: 97.31010906 | U52: 0.7866320014 | V52: 0.3434287012 | W52: 2.687711 | X52: 0.09577408433 | Y52: -0.7075074911 | Z52: 27393.6188 | AA52: 0.682675 | AB52: 0.682675 | AD52: 0.3204849388 | AE52: 0.1181185759 | AF52: 2337953031 | AG52: 27393618800 | AH52: 8.534662939
A53: Cyprus | B53: 2009 | C53: 2830582843 | D53: 90675948 | E53: 22596831 | F53: 16694609 | G53: 40986383 | H53: 10398125 | I53: 6419.034 | R53: 0.681941 | S53: 103.0330138 | T53: 97.62760922 | U53: 0.8080350161 | V53: 0.3435391188 | W53: 2.704984903 | X53: 0.07867488265 | Y53: -0.5309302211 | Z53: 27382.894 | AA53: 0.719843 | AB53: 0.719843 | AD53: 0.460018157 | AE53: 0.1395332182 | AF53: 2830582843 | AG53: 27382894000 | AH53: 10.33704781
A54: Cyprus | B54: 2010 | C54: 1.359680527e+10 | D54: 78059402 | E54: 31659288 | F54: 11128139 | G54: 22291904 | H54: 12980071 | I54: 6135.2923 | R54: 0.700197 | S54: 98.50345134 | T54: 100 | U54: 0.8294460177 | V54: 0.3451904655 | W54: 2.722369432 | X54: 0.08754943311 | Y54: -0.5857681632 | Z54: 27562.984 | AA54: 0.755045 | AB54: 0.755045 | AD54: 0.3750819377 | AE54: -0.0849362193 | AF54: 1.359680527e+10 | AG54: 27562984000 | AH54: 49.32994655
A55: Cyprus | B55: 2011 | C55: -1.192054495e+10 | D55: 107753717 | E55: 47983461 | F55: 22497469 | G55: 22892332 | H55: 14380455 | I55: 5324.1818 | R55: 0.698621 | S55: 99.17765126 | T55: 103.2897537 | U55: 0.8508809805 | V55: 0.3452753425 | W55: 2.742017269 | X55: 0.1104099974 | Y55: -0.5799424648 | Z55: 28242.7407 | AA55: 0.719355 | AB55: 0.719355 | AD55: 0.5303739133 | AE55: 0.1552919755 | AF55: -1.192054495e+10 | AG55: 28242740700 | AH55: -42.20746519
A56: Cyprus | B56: 2012 | C56: 4.960056728e+10 | D56: 65613137 | E56: 9105775 | F56: 23176317 | G56: 19152924 | H56: 14178121 | I56: 4152.8153 | R56: 0.706852 | S56: 96.57131396 | T56: 105.7570902 | U56: 0.8639450073 | V56: 0.3342708051 | W56: 2.761806965 | X56: 0.1052251905 | Y56: -0.4970324337 | Z56: 27572.5722 | AA56: 0.778294 | AB56: 0.778294 | AD56: 0.3057523735 | AE56: -0.2246215397 | AF56: 4.960056728e+10 | AG56: 27572572200 | AH56: 179.8909689
A57: Cyprus | B57: 2013 | C57: -6025166434 | D57: 131716708 | E57: 3519904 | F57: 27779698 | G57: 75125312 | H57: 25291794 | I57: 3728.1603 | R57: 0.687317 | S57: 98.63951077 | T57: 105.3347412 | U57: 0.8619300127 | V57: 0.3144706786 | W57: 2.781739473 | X57: 0.1286403835 | Y57: -0.4624579251 | Z57: 26393.1879 | AA57: 0.753159 | AB57: 0.753159 | AD57: 0.6626166555 | AE57: 0.356864282 | AF57: -6025166434 | AG57: 26393187900 | AH57: -22.82849066
A58: Cyprus | B58: 2014 | C58: -754354504.9 | D58: 159924182 | E58: 54811800 | F58: 19161048 | G58: 54246240 | H58: 31705094 | I58: 3019.4598 | R58: 0.679712 | S58: 98.10331079 | T58: 103.9074672 | U58: 0.852504015 | V58: 0.3089077473 | W58: 2.801815748 | X58: 0.1226226836 | Y58: -0.513761878 | Z58: 25907.989 | AA58: 0.753731 | AB58: 0.753731 | AD58: 0.8189625761 | AE58: 0.1563459207 | AF58: -754354504.9 | AG58: 25907989000 | AH58: -2.911667536
A59: Cyprus | B59: 2015 | C59: 8106710246 | D59: 42159462 | E59: 8781949 | F59: 8894710 | G59: 18996140 | H59: 5486663 | I59: 3473.3956 | R59: 0.662962 | S59: 91.57697082 | T59: 101.72853 | U59: 0.8470079899 | V59: 0.3132782578 | W59: 2.822036982 | X59: 0.1224731505 | Y59: -0.434371233 | Z59: 26767.7832 | AA59: 0.901659 | AB59: 0.901659 | AD59: 0.1746788532 | AE59: -0.6442837229 | AF59: 8106710246 | AG59: 26767783200 | AH59: 30.2853254
A60: Cyprus | B60: 2016 | C60: 8231019093 | D60: 18772194 | E60: 18772194 | I60: 5063.272 | R60: 0.644648 | S60: 91.7853344 | T60: 100.0114636 | U60: 0.848318994 | V60: 0.3221285641 | W60: 2.842404366 | X60: 0.1175580025 | Y60: -0.4840851724 | Z60: 28682.6219 | AA60: 0.904035 | AB60: 0.904035 | AD60: 0.07239539485 | AE60: -0.1022834583 | AF60: 8231019093 | AG60: 28682621900 | AH60: 28.69688525
A61: Cyprus | B61: 2017 | C61: 1.101880595e+10 | I61: 6674.4733 | R61: 0.632269 | S61: 92.58640077 | T61: 100.543291 | U61: 0.8551530242 | V61: 0.3321934938 | W61: 2.862918377 | X61: 0.1214606166 | Y61: -0.5315384269 | Z61: 31076.4909 | AA61: 0.887397 | AB61: 0.887397 | AD61: 0 | AE61: -0.07239539485 | AF61: 1.101880595e+10 | AG61: 31076490900 | AH61: 35.45704688
A62: Czech Republic | B62: 2003 | C62: 2021275746 | D62: 52636787 | E62: 52636787 | I62: 56919.8176 | J62: 0.023 | L62: 3.305556 | M62: 2.968254 | N62: 0.5 | Q62: 0.001187392 | R62: 14.191736 | S62: 86.07745908 | T62: 83.09442752 | U62: 10.23927689 | V62: 4.870787144 | W62: 3.598837614 | X62: 0.3801685572 | Y62: -0.4135957062 | Z62: 198029.4789 | AA62: 28.209 | AB62: 0.886034 | AC62: 0.023 | AD62: 0.02999916312 | AE62: 0.02999916312 | AF62: 2021275746 | AG62: 198029478900 | AH62: 1.020694372
A63: Czech Republic | B63: 2004 | C63: 6423465151 | D63: 228076437 | E63: 67156059 | F63: 16664972 | G63: 98556294 | H63: 45699112 | I63: 59627.0512 | L63: 3.305556 | M63: 2.968254 | N63: 0.5 | Q63: 0.02760108 | R63: 14.439285 | S63: 87.3313039 | T63: 85.38792331 | U63: 10.23953629 | V63: 4.860198498 | W63: 3.60725975 | X63: 0.4995141327 | Y63: -0.5314910412 | Z63: 212091.1078 | AA63: 25.69975 | AB63: 0.805365 | AC63: 0.023 | AD63: 0.1335258058 | AE63: 0.1035266426 | AF63: 6423465151 | AG63: 212091107800 | AH63: 3.028634825
A64: Czech Republic | B64: 2005 | C64: 1.373016468e+10 | D64: 204323131 | E64: 74252705 | F64: 16502941 | G64: 83991325 | H64: 29576160 | I64: 63302.1428 | L64: 3.305556 | M64: 2.968254 | N64: 1.125 | O64: 60662.27428 | P64: 0.4451277312 | Q64: 0.01857098 | R64: 14.562493 | S64: 92.15878849 | T64: 86.97366063 | U64: 10.25817585 | V64: 4.95671463 | W64: 3.615701437 | X64: 0.5722033978 | Y64: -0.5875097513 | Z64: 224201.3809 | AA64: 23.957417 | AB64: 0.80412 | AC64: 0.023 | AD64: 0.1133335227 | AE64: -0.02019228311 | AF64: 1.373016468e+10 | AG64: 224201380900 | AH64: 6.124032166
A65: Czech Republic | B65: 2006 | C65: 7132002408 | D65: 505812840 | E65: 260726915 | F65: 39455942 | G65: 174088646 | H65: 31541337 | I65: 68127.3405 | J65: 0.023 | L65: 3.305556 | M65: 2.968254 | N65: 1.125 | O65: 79837.93972 | P65: 0.5135464871 | Q65: 0.02533993 | R65: 14.429523 | S65: 96.83831491 | T65: 89.17756674 | U65: 10.29828835 | V65: 5.029518604 | W65: 3.619832277 | X65: 0.6283922195 | Y65: -0.6460338831 | Z65: 243445.1989 | AA65: 22.595583 | AB65: 0.797141 | AC65: 0.023 | AD65: 0.2606474548 | AE65: 0.1473139322 | AF65: 7132002408 | AG65: 243445198900 | AH65: 2.929613087
A66: Czech Republic | B66: 2007 | C66: 1.3815656e+10 | D66: 1058635559 | E66: 247413905 | F66: 136809899 | G66: 512113223 | H66: 162298532 | I66: 79334.0091 | L66: 3.051587 | M66: 2.786848 | N66: 1.125 | O66: 112395.531 | P66: 0.5939706986 | Q66: 0.02853124 | R66: 14.272567 | S66: 100 | T66: 91.72191364 | U66: 10.35658646 | V66: 5.133547306 | W66: 3.623967886 | X66: 0.6574590206 | Y66: -0.6793020964 | Z66: 269055.7953 | AA66: 20.293667 | AB66: 0.730638 | AC66: 0.023 | AD66: 0.5385200418 | AE66: 0.277872587 | AF66: 1.3815656e+10 | AG66: 269055795300 | AH66: 5.134866539
A67: Czech Republic | B67: 2008 | C67: 8815393022 | D67: 1942671076 | E67: 630433666 | F67: 274620121 | G67: 732755694 | H67: 304861595 | I67: 83726.6684 | K67: 0.6655 | L67: 3.051587 | M67: 2.786848 | N67: 1.125 | O67: 113172.9392 | P67: 0.4801180187 | Q67: 0.06358664 | R67: 13.916713 | S67: 115.1318507 | T67: 97.55420176 | U67: 10.42379379 | V67: 5.235799789 | W67: 3.628108501 | X67: 0.6845466495 | Y67: -0.7383583188 | Z67: 289157.1486 | AA67: 17.071667 | AB67: 0.682675 | AC67: 0.023 | AD67: =D67/AB67/(Z67*1000000)*100 -> 0.9841274409 | AE67: 0.4456073991 | AF67: =C67 -> 8815393022 | AG67: =Z67*1000000 -> 289157148600 | AH67: =AF67/AG67*100 -> 3.048651249
A68: Czech Republic | B68: 2009 | C68: 5271613702 | D68: 2273673902 | E68: 754830158 | F68: 301163608 | G68: 1017785036 | H68: 199895100 | I68: 77979.0419 | K68: 0.65375 | L68: 3.051587 | M68: 2.786848 | N68: 1.125 | O68: 125828.7547 | P68: 0.6102859379 | Q68: 0.01019377 | R68: 13.635638 | S68: 110.2007669 | T68: 98.5486472 | U68: 10.48684502 | V68: 5.142960548 | W68: 3.632253408 | X68: 0.598990202 | Y68: -0.6319510341 | Z68: 288245.3284 | AA68: 19.063 | AB68: 0.719843 | AC68: 0.023 | AD68: 1.09579197 | AE68: =AD68-AD67 -> 0.1116645293 | AF68: 5271613702 | AG68: 288245328400 | AH68: 1.828863535
A69: Czech Republic | B69: 2010 | C69: 1.016783437e+10 | D69: 2692008478 | E69: 609728699 | F69: 501572637 | G69: 1348324368 | H69: 232382774 | I69: 77976.8478 | J69: 0.012 | K69: 0.64975 | L69: 3.051587 | M69: 2.786848 | N69: 1.3125 | O69: 128505.4878 | P69: 0.6193695221 | Q69: 0.01472727 | R69: 13.673097 | S69: 111.936653 | T69: 100 | U69: 10.53628635 | V69: 5.09887886 | W69: 3.636403322 | X69: 0.6701450944 | Y69: -0.711004734 | Z69: 289800.0366 | AA69: 19.09825 | AB69: 0.755045 | AC69: 0.012 | AD69: 1.230283364 | AE69: 0.1344913934 | AF69: 1.016783437e+10 | AG69: 289800036600 | AH69: 3.508569044
A70: Czech Republic | B70: 2011 | C70: 4188736491 | D70: 2176150196 | E70: 40698280 | F70: 455097042 | G70: 1418437232 | H70: 261917642 | I70: 79954.4866 | J70: 0.01 | K70: 0.65725 | L70: 3.051587 | M70: 2.786848 | N70: 1.3125 | O70: 120569.2778 | P70: 0.5289325599 | Q70: 0.01917219 | R70: 13.345305 | S70: 114.1866098 | T70: 101.9172191 | U70: 10.5687151 | V70: 5.090081692 | W70: 3.64057374 | X70: 0.7331237793 | Y70: -0.7767473459 | Z70: 302260.2358 | AA70: 17.695917 | AB70: 0.719355 | AC70: 0.01 | AD70: 1.000839837 | AE70: -0.2294435271 | AF70: 4188736491 | AG70: 302260235800 | AH70: 1.385804679
A71: Czech Republic | B71: 2012 | C71: 9433199805 | D71: 3567400842 | E71: 1470513225 | F71: 365376201 | G71: 1431967138 | H71: 299544278 | I71: 79107.147 | J71: 0.01 | K71: 0.6655 | L71: 2.924603 | M71: 2.696145 | N71: 1.4375 | O71: 136493.8677 | P71: 0.6581938336 | Q71: 0.03287623 | R71: 13.297699 | S71: 110.6570889 | T71: 105.2678731 | U71: 10.5867548 | V71: 5.113022327 | W71: 3.64475441 | X71: 0.7300881147 | Y71: -0.769194603 | Z71: 305309.3707 | AA71: 19.5775 | AB71: 0.778294 | AC71: 0.01 | AD71: 1.501302107 | AE71: 0.5004622701 | AF71: 9433199805 | AG71: 305309370700 | AH71: 3.0897184
A72: Czech Republic | B72: 2013 | C72: 7357578653 | D72: 3879496220 | E72: 1382922189 | F72: 335254041 | G72: 1133412104 | H72: 1027907886 | I72: 80333.7701 | J72: 0.01 | K72: 0.67725 | L72: 2.924603 | M72: 2.696145 | N72: 1.4375 | O72: 134084.5539 | P72: 0.6403200438 | Q72: 0.01438298 | R72: 12.785271 | S72: 108.6237884 | T72: 106.7819387 | U72: 10.59448147 | V72: 5.131529331 | W72: 3.648944855 | X72: 0.7292252779 | Y72: -0.7653133869 | Z72: 320535.0972 | AA72: 19.570583 | AB72: 0.753159 | AC72: 0.01 | AD72: 1.606989626 | AE72: 0.1056875191 | AF72: 7357578653 | AG72: 320535097200 | AH72: 2.295405001
A73: Czech Republic | B73: 2014 | C73: 8088661930 | D73: 3284998760 | E73: 901835298 | F73: 326079935 | G73: 1748382628 | H73: 308700899 | I73: 85338.6676 | J73: 0.01 | K73: 0.68975 | O73: 121511.8245 | P73: 0.5847022349 | Q73: 0.003439886 | R73: 12.70321 | S73: 102.5530802 | T73: 107.1492564 | U73: 10.598526 | V73: 5.156386852 | W73: 3.65314579 | X73: 0.7332512736 | Y73: -0.7619941235 | Z73: 339582.5988 | AA73: 20.7575 | AB73: 0.753731 | AC73: 0.01 | AD73: 1.2834336 | AE73: -0.3235560261 | AF73: 8088661930 | AG73: 339582598800 | AH73: 2.381942408
A74: Czech Republic | B74: 2015 | C74: 1699914617 | D74: 5386267492 | E74: 1636477632 | F74: 92646750 | G74: 2928587125 | H74: 728555985 | I74: 94035.7274 | J74: 0.01 | K74: 0.70225 | O74: 116627.8199 | P74: 0.6242460112 | Q74: 0.003093646 | R74: 12.934509 | S74: 100.8948887 | T74: 107.4807382 | U74: 10.60376167 | V74: 5.222311497 | W74: 3.657356977 | X74: 0.6734448075 | Y74: -0.7010063529 | Z74: 355311.7368 | AA74: 24.59875 | AB74: 0.901659 | AC74: 0.01 | AD74: 1.681264496 | AE74: 0.3978308967 | AF74: 1699914617 | AG74: 355311736800 | AH74: 0.478429064
A75: Czech Republic | B75: 2016 | C75: 1.085061231e+10 | D75: 2450516661 | E75: 1243643848 | G75: 967251432 | H75: 239621381 | I75: 92808.1485 | J75: 0.01 | K75: 0.7195 | O75: 121854.6215 | P75: 0.6246062542 | Q75: 0.006835042 | R75: 12.808315 | S75: 102.9848402 | T75: 108.2153736 | U75: 10.61094666 | V75: 5.282899857 | W75: 3.661578178 | X75: 0.6723260283 | Y75: -0.6801760197 | Z75: 372257.3969 | AA75: 24.439917 | AB75: 0.904035 | AC75: 0.01 | AD75: 0.7281637904 | AE75: -0.9531007059 | AF75: 1.085061231e+10 | AG75: 372257396900 | AH75: 2.914814426
A76: Czech Republic | B76: 2017 | C76: 9210079462 | I76: 99778.1715 | J76: 0.01 | K76: 0.73625 | O76: 155994.129 | P76: 0.7224843698 | Q76: 0.02450534 | R76: 12.530576 | S76: 106.8277009 | T76: 110.8672281 | U76: 10.6183033 | V76: 5.356266499 | W76: 3.665810108 | X76: 0.6835125089 | Y76: -0.6890535951 | Z76: 402796.076 | AA76: 23.376333 | AB76: 0.887397 | AC76: 0.01 | AD76: 0 | AE76: -0.7281637904 | AF76: 9210079462 | AG76: 402796076000 | AH76: 2.286536541
A77: Denmark | B77: 2003 | C77: 1184825160 | D77: 58510075 | F77: 1043251 | G77: 25410723 | H77: 32056101 | I77: 34351.8159 | J77: 0.038 | L77: 2.134921 | M77: 2.560658 | N77: 1.375 | Q77: 0.02075078 | R77: 8.657446 | S77: 99.50785542 | T77: 87.39398268 | U77: 5.386968136 | V77: 2.757146597 | W77: 3.341968536 | X77: 0.6225892305 | Y77: -0.5506769419 | Z77: 165955.5208 | AA77: 6.587673 | AB77: 0.886034 | AC77: 0.038 | AD77: 0.03979133984 | AE77: 0.03979133984 | AF77: 1184825160 | AG77: 165955520800 | AH77: 0.7139413948
A78: Denmark | B78: 2004 | C78: -8804165491 | D78: 115126884 | F78: 1716738 | G78: 16924339 | H78: 96485807 | I78: 36749.7459 | L78: 2.134921 | M78: 2.560658 | N78: 1.375 | Q78: 0.01154357 | R78: 8.467542 | S78: 100.6446321 | T78: 88.40282118 | U78: 5.402760983 | V78: 2.743097544 | W78: 3.355677128 | X78: 0.644492507 | Y78: -0.5821888447 | Z78: 177855.7558 | AA78: 5.991057 | AB78: 0.805365 | AC78: 0.038 | AD78: 0.08037409095 | AE78: 0.04058275111 | AF78: -8804165491 | AG78: 177855755800 | AH78: -4.950171813
A79: Denmark | B79: 2005 | C79: 1.284703134e+10 | D79: 74377848 | F79: 11110310 | G79: 19143898 | H79: 44123640 | I79: 39186.4668 | L79: 2.134921 | M79: 2.560658 | N79: 1.375 | O79: 74650.93847 | P79: 0.2822694956 | Q79: 0.01817815 | R79: 8.569438 | S79: 99.21065777 | T79: 90.00982055 | U79: 5.421701908 | V79: 2.784157515 | W79: 3.369441986 | X79: 0.65997082 | Y79: -0.5837336779 | Z79: 185074.4459 | AA79: 5.99691 | AB79: 0.80412 | AC79: 0.038 | AD79: 0.04997770242 | AE79: -0.03039638853 | AF79: 1.284703134e+10 | AG79: 185074445900 | AH79: 6.941547916
A80: Denmark | B80: 2006 | C80: 2385249288 | D80: 52954370 | F80: 5751555 | G80: 11075600 | H80: 36127215 | I80: 47194.0015 | J80: 0.038 | L80: 2.134921 | M80: 2.346372 | N80: 1.375 | O80: 92079.4702 | P80: 0.325500388 | Q80: 0.01924221 | R80: 8.295715 | S80: 98.78531462 | T80: 91.74180877 | U80: 5.444303036 | V80: 2.849672318 | W80: 3.383263588 | X80: 0.672934413 | Y80: -0.6181766987 | Z80: 202786.6121 | AA80: 5.946778 | AB80: 0.797141 | AC80: 0.038 | AD80: 0.03275875431 | AE80: -0.01721894811 | AF80: 2385249288 | AG80: 202786612100 | AH80: 1.176236076
A81: Denmark | B81: 2007 | C81: 1.180944852e+10 | D81: 143560773 | F81: 36732461 | G81: 33291432 | H81: 73536880 | I81: 50042.2349 | L81: 2.134921 | M81: 2.346372 | N81: 1.375 | O81: 111288.4161 | P81: 0.3484041899 | Q81: 0.01693266 | R81: 8.170339 | S81: 100 | T81: 93.2952415 | U81: 5.469956875 | V81: 2.916533947 | W81: 3.397141695 | X81: 0.6715894938 | Y81: -0.6458546519 | Z81: 212824.1067 | AA81: 5.443701 | AB81: 0.730638 | AC81: 0.038 | AD81: 0.09232359626 | AE81: 0.05956484195 | AF81: 1.180944852e+10 | AG81: 212824106700 | AH81: 5.548924274
A82: Denmark | B82: 2008 | C82: 2191215666 | D82: 131959926 | F82: 55360256 | G82: 18175493 | H82: 58424177 | I82: 52029.3757 | K82: 0.7785 | L82: 2.134921 | M82: 2.346372 | N82: 1.375 | O82: 103946.7212 | P82: 0.2941675479 | Q82: 0.03416268 | R82: 7.944128 | S82: 102.0587475 | T82: 96.48245692 | U82: 5.497795105 | V82: 2.949230194 | W82: 3.411076784 | X82: 0.6703795195 | Y82: -0.6575375199 | Z82: 226767.5052 | AA82: 5.098131 | AB82: 0.682675 | AC82: 0.038 | AD82: 0.08524074606 | AE82: -0.007082850199 | AF82: 2191215666 | AG82: 226767505200 | AH82: 0.9662829178
A83: Denmark | B83: 2009 | C83: 3771059440 | D83: 107516600 | F83: 64667135 | G83: 19003265 | H83: 23846200 | I83: 44936.2593 | K83: 0.75375 | L83: 2.134921 | M83: 2.346372 | N83: 1.375 | O83: 103229.6605 | P83: 0.3213440664 | Q83: 0.0130471 | R83: 7.729549 | S83: 104.1355236 | T83: 97.7412731 | U83: 5.526446819 | V83: 2.855724335 | W83: 3.425069094 | X83: 0.5688661337 | Y83: -0.5214774609 | Z83: 222799.9449 | AA83: 5.360867 | AB83: 0.719843 | AC83: 0.038 | AD83: 0.06703824824 | AE83: -0.01820249782 | AF83: 3771059440 | AG83: 222799944900 | AH83: 1.692576469
A84: Denmark | B84: 2010 | C84: -1.176786193e+10 | D84: 89776071 | F84: 48175236 | G84: 19953012 | H84: 21647823 | I84: 43209.8315 | J84: 0.033 | K84: 0.7335 | L84: 2.134921 | M84: 2.346372 | N84: 1.375 | O84: 96983.94884 | P84: 0.3011966905 | Q84: 0.02310924 | R84: 7.591444 | S84: 99.8651091 | T84: 100 | U84: 5.554843903 | V84: 2.791590452 | W84: 3.439118624 | X84: 0.5598810315 | Y84: -0.506862402 | Z84: 238548.3037 | AA84: 5.624075 | AB84: 0.755045 | AC84: 0.033 | AD84: 0.0498438323 | AE84: -0.01719441594 | AF84: -1.176786193e+10 | AG84: 238548303700 | AH84: -4.933114905
A85: Denmark | B85: 2011 | C85: 1.355889463e+10 | D85: 160995533 | F85: 62801996 | G85: 65794006 | H85: 32399531 | I85: 44914.798 | J85: 0.033 | K85: 0.7315 | L85: 2.198413 | M85: 2.391723 | N85: 1.375 | O85: 98423.14119 | P85: 0.286111121 | Q85: 0.02758682 | R85: 7.466492 | S85: 99.41345832 | T85: 102.7586823 | U85: 5.582872868 | V85: 2.793146133 | W85: 3.45655489 | X85: 0.6083325744 | Y85: -0.5478361249 | Z85: 247352.2892 | AA85: 5.368712 | AB85: 0.719355 | AC85: 0.033 | AD85: 0.09048042369 | AE85: 0.04063659139 | AF85: 1.355889463e+10 | AG85: 247352289200 | AH85: 5.481612755
A86: Denmark | B86: 2012 | C86: -1.634982569e+10 | D86: 97553478 | F86: 62029976 | G86: 21418691 | H86: 14104811 | I86: 47042.7789 | J86: 0.033 | K86: 0.72575 | L86: 2.198413 | M86: 2.391723 | N86: 1.375 | O86: 98319.52077 | P86: 0.3005344685 | Q86: 0.02397915 | R86: 7.564136 | S86: 96.89997508 | T86: 105.222748 | U86: 5.610660076 | V86: 2.776437759 | W86: 3.47407937 | X86: 0.5911494493 | Y86: -0.5540573597 | Z86: 250524.5651 | AA86: 5.792476 | AB86: 0.778294 | AC86: 0.033 | AD86: 0.05003210304 | AE86: -0.04044832066 | AF86: -1.634982569e+10 | AG86: 250524565100 | AH86: -6.52623653
A87: Denmark | B87: 2013 | C87: 680338945.9 | D87: 141730491 | F87: 63303167 | H87: 78427324 | I87: 49987.4527 | J87: 0.033 | K87: 0.7255 | L87: 2.198413 | M87: 2.391723 | N87: 1.375 | O87: 74943.37392 | P87: 0.2181221671 | Q87: 0.007890718 | R87: 7.354846 | S87: 98.36913621 | T87: 106.053031 | U87: 5.637816906 | V87: 2.777265549 | W87: 3.49169302 | X87: 0.6087763309 | Y87: -0.5878326893 | Z87: 262368.1157 | AA87: 5.616312 | AB87: 0.753159 | AC87: 0.033 | AD87: 0.07172417562 | AE87: 0.02169207259 | AF87: 680338945.9 | AG87: 2.623681157e+11 | AH87: 0.2593070214
A88: Denmark | B88: 2014 | C88: 6577348987 | D88: 221635970 | F88: 87206568 | G88: 76313303 | H88: 58116099 | I88: 51805.2762 | J88: 0.033 | K88: 0.728 | O88: 95766.48982 | P88: 0.271298091 | Q88: 0.005640205 | R88: 7.328674 | S88: 99.12441428 | T88: 106.6511919 | U88: 5.663914204 | V88: 2.804111004 | W88: 3.509395599 | X88: 0.5966743231 | Y88: -0.5901389718 | Z88: 270330.6084 | AA88: 5.612467 | AB88: 0.753731 | AC88: 0.033 | AD88: 0.1087748881 | AE88: 0.03705071252 | AF88: 6577348987 | AG88: 2.703306084e+11 | AH88: 2.433075938
A89: Denmark | B89: 2015 | C89: 1850770715 | D89: 103198992 | F89: 30805756 | G89: 36325983 | H89: 36067253 | I89: 55348.216 | J89: 0.033 | K89: 0.735 | O89: 92652.2694 | P89: 0.3061134274 | Q89: 0.004520341 | R89: 7.303397 | S89: 95.24230135 | T89: 107.1332917 | U89: 5.688694954 | V89: 2.831585884 | W89: 3.527188301 | X89: 0.5513777137 | Y89: -0.5513321757 | Z89: 278823.125 | AA89: 6.727907 | AB89: 0.901659 | AC89: 0.033 | AD89: 0.04104916647 | AE89: -0.06772572167 | AF89: 1850770715 | AG89: 278823125000 | AH89: 0.6637794892
A90: Denmark | B90: 2016 | C90: 7626405302 | I90: 60670.9026 | J90: 0.033 | K90: 0.7485 | O90: 97766.27722 | P90: 0.3133654047 | Q90: 0.0025 | R90: 7.232726 | S90: 96.1072774 | T90: 107.4011249 | U90: 5.711870193 | V90: 2.868884802 | W90: 3.545071125 | X90: 0.5397654176 | Y90: -0.5397771001 | Z90: 290376.8332 | AA90: 6.731718 | AB90: 0.904035 | AC90: 0.033 | AD90: 0 | AE90: -0.04104916647 | AF90: 7626405302 | AG90: 290376833200 | AH90: 2.626382146
A91: Denmark | B91: 2017 | C91: 2357373494 | I91: 66482.4562 | J91: 0.033 | K91: 0.742 | O91: 118462.0713 | P91: 0.3591223432 | Q91: 0.01147132 | R91: 6.950601 | S91: 96.48098651 | T91: 108.6331578 | U91: 5.733551025 | V91: 2.902802467 | W91: 3.56304431 | X91: 0.5372655988 | Y91: -0.5391204357 | Z91: 313363.8552 | AA91: 6.602893 | AB91: 0.887397 | AC91: 0.033 | AD91: 0 | AE91: 0 | AF91: 2357373494 | AG91: 313363855200 | AH91: 0.752279963
A92: Germany | B92: 2003 | C92: 6.534835902e+10 | D92: 3610753923 | F92: 488257085 | G92: 1778375119 | H92: 1344121719 | I92: 482872.5824 | J92: 0.03 | L92: 2.678571 | M92: 2.94898 | N92: 1.5 | Q92: 0.01034223 | R92: 0.89693 | S92: 98.20649964 | T92: 89.55746696 | U92: 81.68649292 | V92: 38.8231163 | W92: 3.592203379 | X92: 0.4703080058 | Y92: -0.408496201 | Z92: 2475198.193 | AA92: 0.886034 | AB92: 0.886034 | AC92: 0.03 | AD92: 0.1646408217 | AE92: 0.1646408217 | AF92: 6.534835902e+10 | AG92: 2475198192600 | AH92: 2.640126323
A93: Germany | B93: 2004 | C93: -2.044471945e+10 | D93: 4249449417 | F93: 690862188 | G93: 2374394043 | H93: 1184193186 | I93: 496622.266 | L93: 2.678571 | M93: 2.94898 | N93: 1 | Q93: 0.01665736 | R93: 0.875861 | S93: 100.2216739 | T93: 91.04925561 | U93: 81.7156601 | V93: 38.98116684 | W93: 3.600873232 | X93: 0.5268973112 | Y93: -0.4458221495 | Z93: 2592443.766 | AA93: 0.805365 | AB93: 0.805365 | AC93: 0.03 | AD93: 0.2035310005 | AE93: 0.0388901788 | AF93: -2.044471945e+10 | AG93: 2592443765500 | AH93: -0.7886273067
A94: Germany | B94: 2005 | C94: 5.985575987e+10 | D94: 4365321193 | F94: 575758172 | G94: 2156112712 | H94: 1633450309 | I94: 502750.4164 | L94: 2.678571 | M94: 2.94898 | N94: 1 | O94: 647785.7733 | Q94: 0.01546911 | R94: 0.872721 | S94: 98.64203105 | T94: 92.45770533 | U94: 81.67123413 | V94: 38.97120285 | W94: 3.609564066 | X94: 0.5479781628 | Y94: -0.4550563097 | Z94: 2636420.108 | AA94: 0.80412 | AB94: 0.80412 | AC94: 0.03 | AD94: 0.2059115579 | AE94: 0.002380557395 | AF94: 5.985575987e+10 | AG94: 2636420108200 | AH94: 2.27034226
A95: Germany | B95: 2006 | C95: 8.74417373e+10 | D95: 4259007703 | F95: 563126707 | G95: 2208615689 | H95: 1487265307 | I95: 559100.0206 | J95: 0.03 | L95: 2.678571 | M95: 2.94898 | N95: 1 | O95: 836233.3728 | Q95: 0.01577429 | R95: 0.848455 | S95: 97.98776705 | T95: 93.9161593 | U95: 81.54035187 | V95: 39.25872803 | W95: 3.618275642 | X95: 0.5918360353 | Y95: -0.4964690208 | Z95: 2820716.537 | AA95: 0.797141 | AB95: 0.797141 | AC95: 0.03 | AD95: 0.1894147669 | AE95: -0.01649679108 | AF95: 8.74417373e+10 | AG95: 2820716536900 | AH95: 3.099983148
A96: Germany | B96: 2007 | C96: 5.084504952e+10 | D96: 5114986204 | F96: 999663365 | G96: 2565212405 | H96: 1550110434 | I96: 603225.5552 | L96: 2.678571 | M96: 2.94898 | N96: 1 | O96: 1012729.28 | Q96: 0.02298341 | R96: 0.838113 | S96: 100 | T96: 96.07467364 | U96: 81.34445953 | V96: 39.89953995 | W96: 3.627008438 | X96: 0.6181249022 | Y96: -0.507130444 | Z96: 2998677.856 | AA96: 0.730638 | AB96: 0.730638 | AC96: 0.03 | AD96: 0.2334599555 | AE96: 0.0440451886 | AF96: 5.084504952e+10 | AG96: 2998677855600 | AH96: 1.695582252
A97: Germany | B97: 2008 | C97: 3.092605558e+10 | D97: 3701197012 | F97: 845283239 | G97: 1753869085 | H97: 1102044688 | I97: 634822.5954 | K97: 0.701 | L97: 2.678571 | M97: 2.94898 | N97: 1 | O97: 927427.9749 | Q97: 0.02628383 | R97: 0.820401 | S97: 100.9832366 | T97: 98.59988283 | U97: 81.1309433 | V97: 40.39556503 | W97: 3.635762215 | X97: 0.6255651712 | Y97: -0.5418851376 | Z97: 3122546.721 | AA97: 0.682675 | AB97: 0.682675 | AC97: 0.03 | AD97: 0.1736277985 | AE97: -0.05983215698 | AF97: 3.092605558e+10 | AG97: 3122546721400 | AH97: 0.9904113001
A98: Germany | B98: 2009 | C98: 5.666866526e+10 | D98: 4257566887 | F98: 1006645328 | G98: 2116642574 | H98: 1134278985 | I98: 581326.5878 | K98: 0.70325 | L98: 2.678571 | M98: 2.94898 | N98: 1 | O98: 965013.6868 | Q98: 0.003127377 | R98: 0.81094 | S98: 100.8033709 | T98: 98.90824177 | U98: 80.96561432 | V98: 40.45113373 | W98: 3.64453721 | X98: 0.5510928035 | Y98: -0.4783256352 | Z98: 3033861.829 | AA98: 0.719843 | AB98: 0.719843 | AC98: 0.03 | AD98: 0.1949520902 | AE98: 0.02132429169 | AF98: 5.666866526e+10 | AG98: 3033861829500 | AH98: 1.867872317
A99: Germany | B99: 2010 | C99: 8.605368491e+10 | D99: 4104452188 | F99: 1172344534 | G99: 1803966215 | H99: 1128141439 | I99: 622837.0877 | J99: 0.023 | K99: 0.7125 | L99: 2.678571 | M99: 2.94898 | N99: 1 | O99: 959199.6259 | Q99: 0.01103809 | R99: 0.805105 | S99: 95.43075049 | T99: 100 | U99: 80.89478302 | V99: 40.63821411 | W99: 3.653333187 | X99: 0.5847283602 | Y99: -0.5180968046 | Z99: 3204627.104 | AA99: 0.755045 | AB99: 0.755045 | AC99: 0.023 | AD99: 0.1696308599 | AE99: -0.02532123029 | AF99: 8.605368491e+10 | AG99: 3204627103600 | AH99: 2.685294798
A100: Germany | B100: 2011 | C100: 9.748073102e+10 | D100: 4645776789 | F100: 1371678988 | G100: 2242928232 | H100: 1031169569 | I100: 694552.8048 | J100: 0.023 | K100: 0.727 | L100: 2.678571 | M100: 2.94898 | N100: 1 | O100: 988550.9121 | Q100: 0.02075173 | R100: 0.788739 | S100: 95.13803202 | T100: 102.0751745 | U100: 80.93398285 | V100: 41.29730225 | W100: 3.655776262 | X100: 0.6159803867 | Y100: -0.559551239 | Z100: 3427140.576 | AA100: 0.719355 | AB100: 0.719355 | AC100: 0.023 | AD100: 0.1884443645 | AE100: 0.01881350466 | AF100: 9.748073102e+10 | AG100: 3427140576400 | AH100: 2.844375036
A101: Germany | B101: 2012 | C101: 6.546427495e+10 | D101: 4715754491 | F101: 1320788770 | G101: 2129878609 | H101: 1265087112 | I101: 704666.9998 | J101: 0.023 | K101: 0.73 | L101: 2.678571 | M101: 2.94898 | N101: 1 | O101: 863410.2902 | Q101: 0.02008491 | R101: 0.787246 | S101: 91.92003888 | T101: 104.1253451 | U101: 81.06623077 | V101: 41.7678299 | W101: 3.65822053 | X101: 0.6075572968 | Y101: -0.553884089 | Z101: 3503684.207 | AA101: 0.778294 | AB101: 0.778294 | AC101: 0.023 | AD101: 0.172934861 | AE101: -0.01550950357 | AF101: 6.546427495e+10 | AG101: 3503684206600 | AH101: 1.868441078
A102: Germany | B102: 2013 | C102: 6.740757481e+10 | D102: 5689189962 | F102: 1258039646 | G102: 2407473311 | H102: 2023677005 | I102: 718589.8831 | J102: 0.023 | K102: 0.735 | L102: 2.678571 | M102: 2.94898 | N102: 1.125 | O102: 955167.5631 | Q102: 0.01504722 | R102: 0.774784 | S102: 94.76617751 | T102: 105.6921411 | U102: 81.26513672 | V102: 42.01234055 | W102: 3.660666704 | X102: 0.615911901 | Y102: -0.5520274043 | Z102: 3647777.594 | AA102: 0.753159 | AB102: 0.753159 | AC102: 0.023 | AD102: 0.2070786922 | AE102: 0.03414383123 | AF102: 6.740757481e+10 | AG102: 3647777594100 | AH102: 1.847908023
A103: Germany | B103: 2014 | C103: 1.977835728e+10 | D103: 4172826906 | F103: 956837888 | G103: 2142920438 | H103: 1073068580 | I103: 764105.8299 | J103: 0.023 | K103: 0.73775 | O103: 862213.1844 | Q103: 0.009067971 | R103: 0.768937 | S103: 95.37664854 | T103: 106.6505552 | U103: 81.48966217 | V103: 42.30310059 | W103: 3.663114548 | X103: 0.6191797853 | Y103: -0.5434197783 | Z103: 3821628.07 | AA103: 0.753731 | AB103: 0.753731 | AC103: 0.023 | AD103: 0.1448657017 | AE103: -0.06221299055 | AF103: 1.977835728e+10 | AG103: 3821628069600 | AH103: 0.5175374716
A104: Germany | B104: 2015 | C104: 5.411773983e+10 | D104: 2556276791 | F104: 270257492 | G104: 1612671441 | H104: 673347858 | I104: 778377.2985 | J104: 0.023 | K104: 0.73975 | O104: 795495.9173 | Q104: 0.00514421 | R104: 0.777913 | S104: 90.22310605 | T104: 107.1991876 | U104: 81.70778656 | V104: 42.44194412 | W104: 3.66556406 | X104: 0.5892153978 | Y104: -0.5077165365 | Z104: 3919280.293 | AA104: 0.901659 | AB104: 0.901659 | AC104: 0.023 | AD104: 0.07233678975 | AE104: -0.07252891191 | AF104: 5.411773983e+10 | AG104: 3919280293200 | AH104: 1.380808102
A105: Germany | B105: 2016 | C105: 5.805685784e+10 | D105: 547207421 | G105: 383090882 | H105: 164116539 | I105: 824895.5238 | J105: 0.023 | K105: 0.7465 | O105: 792321.0709 | Q105: 0.004917486 | R105: 0.768617 | S105: 90.97618844 | T105: 107.7263381 | U105: 81.91467285 | V105: 42.76493835 | W105: 3.668015003 | X105: 0.5792643428 | Y105: -0.4913344085 | Z105: 4110953.334 | AA105: 0.904035 | AB105: 0.904035 | AC105: 0.023 | AD105: 0.01472394502 | AE105: -0.05761284473 | AF105: 5.805685784e+10 | AG105: 4110953334000 | AH105: 1.412248039
A106: Germany | B106: 2017 | C106: 7.798339153e+10 | I106: 882722.5365 | J106: 0.023 | K106: 0.7525 | O106: 954491.4848 | Q106: 0.01509497 | R106: 0.754169 | S106: 91.7951083 | T106: 109.3524635 | U106: 82.11422729 | V106: 43.23632812 | W106: 3.670467615 | X106: 0.5912520289 | Y106: -0.5046710372 | Z106: 4345630.575 | AA106: 0.887397 | AB106: 0.887397 | AC106: 0.023 | AD106: 0 | AE106: -0.01472394502 | AF106: 7.798339153e+10 | AG106: 4345630575200 | AH106: 1.794524182
A107: Estonia | B107: 2003 | C107: 1037745583 | D107: 15565543 | E107: 15565543 | I107: 5855.8787 | J107: 0.039 | Q107: 0.01334991 | R107: 0.486311 | S107: 90.39249042 | T107: 73.75214327 | U107: 1.37290895 | V107: 0.6160734296 | W107: 3.347201347 | X107: 0.5513125658 | Y107: -0.6738680005 | Z107: 17908.0314 | AA107: 0.885586 | AB107: 0.886034 | AC107: 0.039 | AD107: 0.09809932991 | AE107: 0.09809932991 | AF107: 1037745583 | AG107: 17908031400 | AH107: 5.79486131
A108: Estonia | B108: 2004 | C108: 1086502853 | D108: 60154974 | E108: 23858760 | F108: 5679828 | G108: 22597566 | H108: 8018820 | I108: 6243.9018 | Q108: 0.03048111 | R108: 0.494099 | S108: 92.71639415 | T108: 76.00019051 | U108: 1.363564968 | V108: 0.6130917072 | W108: 3.362284899 | X108: 0.6333758235 | Y108: -0.7825340629 | Z108: 19647.1775 | AA108: 0.805003 | AB108: 0.805365 | AC108: 0.039 | AD108: 0.3801706828 | AE108: 0.2820713529 | AF108: 1086502853 | AG108: 19647177500 | AH108: 5.530070937
A109: Estonia | B109: 2005 | C109: 3127298002 | D109: 98332570 | E109: 32317148 | F109: 20959569 | G109: 40162088 | H109: 4893765 | I109: 7360.8393 | O109: 11191.57721 | Q109: 0.04079714 | R109: 0.503328 | S109: 93.57062863 | T109: 79.1007811 | U109: 1.355648041 | V109: 0.6269555688 | W109: 3.377436399 | X109: 0.6724684834 | Y109: -0.7795954943 | Z109: 22375.6783 | AA109: 0.804251 | AB109: 0.80412 | AC109: 0.039 | AD109: 0.5465127728 | AE109: 0.16634209 | AF109: 3127298002 | AG109: 22375678300 | AH109: 13.97632715
A110: Estonia | B110: 2006 | C110: 2212181185 | D110: 154476058 | E110: 71888536 | F110: 13644687 | G110: 52419632 | H110: 16523203 | I110: 9529.09 | J110: 0.035 | O110: 12119.32043 | Q110: 0.04437621 | R110: 0.521332 | S110: 95.08903466 | T110: 82.61097352 | U110: 1.349297047 | V110: 0.6583612561 | W110: 3.396261215 | X110: 0.6722326875 | Y110: -0.8326284885 | Z110: 25936.8472 | AA110: 0.79669 | AB110: 0.797141 | AC110: 0.035 | AD110: 0.7471518011 | AE110: 0.2006390283 | AF110: 2212181185 | AG110: 25936847200 | AH110: 8.529105979
A111: Estonia | B111: 2007 | C111: 3429043145 | D111: 234084333 | E111: 86301394 | F111: 11991277 | G111: 110720028 | H111: 25071634 | I111: 10769.292 | O111: 15670.54321 | Q111: 0.06601326 | R111: 0.551715 | S111: 100 | T111: 88.06439322 | U111: 1.344071984 | V111: 0.6600414515 | W111: 3.415191174 | X111: 0.7170579433 | Y111: -0.8770959377 | Z111: 29447.0954 | AA111: 0.730756 | AB111: 0.730638 | AC111: 0.035 | AD111: 1.087996827 | AE111: 0.3408450255 | AF111: 3429043145 | AG111: 29447095400 | AH111: 11.6447585
A112: Estonia | B112: 2008 | C112: 1873250285 | D112: 288788841 | E112: 116373964 | F112: 49550615 | G112: 88290370 | H112: 34573892 | I112: 9450.4515 | K112: 0.70075 | L112: 2.742064 | M112: 2.458617 | N112: 1.875 | O112: 15449.82603 | Q112: 0.1036236 | R112: 0.545055 | S112: 107.521956 | T112: 97.18994094 | U112: 1.339712024 | V112: 0.6583339572 | W112: 3.434226513 | X112: 0.7569260597 | Y112: -0.9051737189 | Z112: 30303.8388 | AA112: 0.683499 | AB112: 0.682675 | AC112: 0.035 | AD112: 1.39594646 | AE112: 0.3079496332 | AF112: 1873250285 | AG112: 30303838800 | AH112: 6.181561013
A113: Estonia | B113: 2009 | C113: 1865561410 | D113: 598344488 | E113: 128613196 | F113: 82116707 | G113: 332590592 | H113: 55023993 | I113: 6218.1283 | K113: 0.63775 | L113: 2.742064 | M113: 2.458617 | N113: 1.875 | O113: 15841.80954 | Q113: -0.0007840831 | R113: 0.517014 | S113: 108.7241797 | T113: 97.11373595 | U113: 1.335829973 | V113: 0.5906022787 | W113: 3.453367949 | X113: 0.6449385285 | Y113: -0.6722365618 | Z113: 27360.7241 | AA113: 0.719481 | AB113: 0.719843 | AC113: 0.035 | AD113: 3.037987077 | AE113: 1.642040617 | AF113: 1865561410 | AG113: 27360724100 | AH113: 6.818391951
A114: Estonia | B114: 2010 | C114: 2592803327 | D114: 662345694 | E114: 147590380 | F114: 96510528 | G114: 338953824 | H114: 79290962 | I114: 6101.3675 | J114: 0.031 | K114: 0.6125 | L114: 1.809524 | M114: 2.113945 | N114: 1.875 | O114: 15550.89391 | Q114: 0.02972045 | R114: 0.512138 | S114: 105.100818 | T114: 100 | U114: 1.332101941 | V114: 0.5611216426 | W114: 3.472615957 | X114: 0.7556740642 | Y114: -0.7785571218 | Z114: 28735.5072 | AA114: 0.754595 | AB114: 0.755045 | AC114: 0.031 | AD114: 3.052762472 | AE114: 0.01477539514 | AF114: 2592803327 | AG114: 28735507200 | AH114: 9.022994822
A115: Estonia | B115: 2011 | C115: 1118556804 | D115: 383284828 | E115: 72810270 | F115: 118947399 | G115: 163209616 | H115: 28317543 | I115: 8535.6046 | J115: 0.018 | K115: 0.653 | L115: 1.809524 | M115: 2.113945 | N115: 1.875 | O115: 16348.74628 | Q115: 0.04981901 | R115: 0.5116 | S115: 106.6708357 | T115: 104.9819013 | U115: 1.328449011 | V115: 0.5980480909 | W115: 3.492361784 | X115: 0.8862680793 | Y115: -0.9385365844 | Z115: 32579.4377 | AA115: 0.719355 | AB115: 0.719355 | AC115: 0.018 | AD115: 1.635440609 | AE115: -1.417321862 | AF115: 1118556804 | AG115: 32579437700 | AH115: 3.433321391
A116: Estonia | B116: 2012 | C116: 1788040739 | D116: 802698256 | E116: 306217206 | F116: 128261850 | G116: 260134201 | H116: 108084999 | I116: 9840.3963 | J116: 0.018 | K116: 0.6715 | L116: 1.809524 | M116: 2.113945 | N116: 1.875 | O116: 18934.4657 | Q116: 0.039334 | R116: 0.521063 | S116: 105.9956802 | T116: 109.1112593 | U116: 1.324934006 | V116: 0.6083420515 | W116: 3.51235342 | X116: 0.8492046595 | Y116: -0.9424470067 | Z116: 34419.8396 | AA116: 0.778294 | AB116: 0.778294 | AC116: 0.018 | AD116: 2.996400044 | AE116: 1.360959435 | AF116: 1788040739 | AG116: 34419839600 | AH116: 5.194796839
A117: Estonia | B117: 2013 | C117: 1098646096 | D117: 805161790 | E117: 325282917 | F117: 123767923 | G117: 291867264 | H117: 64243686 | I117: 10055.1051 | J117: 0.018 | K117: 0.68475 | L117: 1.809524 | M117: 2.113945 | N117: 3 | O117: 22082.55689 | Q117: 0.02780567 | R117: 0.522424 | S117: 109.6174692 | T117: 112.1451705 | U117: 1.321560025 | V117: 0.616549015 | W117: 3.532593727 | X117: 0.8746009469 | Y117: -0.9417978525 | Z117: 36239.2955 | AA117: 0.753159 | AB117: 0.753159 | AC117: 0.018 | AD117: 2.949964164 | AE117: -0.04643588028 | AF117: 1098646096 | AG117: 36239295500 | AH117: 3.031643086
A118: Estonia | B118: 2014 | C118: 1780989569 | D118: 479252350 | E118: 151349522 | F118: 96099370 | G118: 211824719 | H118: 19978739 | I118: 9753.5187 | J118: 0.018 | K118: 0.69575 | O118: 20970.97973 | Q118: -0.001061751 | R118: 0.52689 | S118: 111.1925523 | T118: 112.0261002 | U118: 1.318359017 | V118: 0.6210135818 | W118: 3.553087234 | X118: 0.8869108558 | Y118: -0.9685200453 | Z118: 38074.6859 | AA118: 0.753731 | AB118: 0.753731 | AC118: 0.018 | AD118: 1.669981054 | AE118: -1.27998311 | AF118: 1780989569 | AG118: 38074685900 | AH118: 4.677621173
A119: Estonia | B119: 2015 | C119: -714370930.3 | D119: 123002739 | E119: 14387251 | F119: 22367128 | G119: 86248360 | I119: 9064.2509 | J119: 0.018 | K119: 0.71875 | O119: 18956.45291 | Q119: -0.00492326 | R119: 0.537436 | S119: 109.2739872 | T119: 111.4745666 | U119: 1.315320969 | V119: 0.6373568773 | W119: 3.573837519 | X119: 0.7789902091 | Y119: -0.8362495899 | Z119: 38426.9501 | AA119: 0.901659 | AB119: 0.901659 | AC119: 0.018 | AD119: 0.3550066954 | AE119: -1.314974359 | AF119: -714370930.3 | AG119: 38426950100 | AH119: -1.859036245
A120: Estonia | B120: 2016 | C120: 939248602.5 | I120: 9333.4641 | J120: 0.018 | K120: 0.721 | O120: 19740.81164 | Q120: 0.001486849 | R120: 0.533337 | S120: 110.6094332 | T120: 111.6403124 | U120: 1.312441945 | V120: 0.6376141906 | W120: 3.59484911 | X120: 0.7902815342 | Y120: -0.8443471789 | Z120: 40654.6655 | AA120: 0.904035 | AB120: 0.904035 | AC120: 0.018 | AD120: 0 | AE120: -0.3550066954 | AF120: 939248602.5 | AG120: 40654665500 | AH120: 2.310309508
A121: Estonia | B121: 2017 | C121: 1555186132 | I121: 10766.155 | J121: 0.018 | K121: 0.74125 | O121: 23896.36244 | Q121: 0.03417236 | R121: 0.535932 | S121: 112.8270122 | T121: 115.4553248 | U121: 1.309631944 | V121: 0.6528035402 | W121: 3.616125584 | X121: 0.7835324407 | Y121: -0.8444535136 | Z121: 44063.6406 | AA121: 0.887397 | AB121: 0.887397 | AC121: 0.018 | AD121: 0 | AE121: 0 | AF121: 1555186132 | AG121: 44063640600 | AH121: 3.529409079
A122: Spain | B122: 2003 | C122: 3.074034115e+10 | D122: 8591869785 | E122: 1724731656 | F122: 809671226 | G122: 4356697837 | H122: 1700769066 | I122: 292323.8507 | J122: 0.036 | L122: 2.357143 | M122: 2.755102 | N122: 3.25 | Q122: 0.03039234 | R122: 0.760106 | S122: 94.1913321 | T122: 83.52614264 | U122: 42.65340424 | V122: 18.25655174 | W122: 2.684630632 | X122: 0.2278963923 | Y122: -0.3205517232 | Z122: 1057053.106 | AA122: 0.886034 | AB122: 0.886034 | AC122: 0.036 | AD122: 0.9173614635 | AE122: 0.9173614635 | AF122: 3.074034115e+10 | AG122: 1057053105800 | AH122: 2.908117008
A123: Spain | B123: 2004 | C123: 2.517636523e+10 | D123: 8964895079 | E123: 1939723999 | F123: 820932935 | G123: 4845970549 | H123: 1358267596 | I123: 320520.5805 | L123: 2.357143 | M123: 2.755102 | N123: 3.25 | Q123: 0.03039202 | R123: 0.766594 | S123: 96.66735075 | T123: 86.06467054 | U123: 43.35166931 | V123: 18.92465401 | W123: 2.701236725 | X123: 0.2393685281 | Y123: -0.3611082137 | Z123: 1123698.515 | AA123: 0.805365 | AB123: 0.805365 | AC123: 0.036 | AD123: 0.9906098736 | AE123: 0.07324841009 | AF123: 2.517636523e+10 | AG123: 1123698515000 | AH123: 2.240491101
A124: Spain | B124: 2005 | C124: 2.672035086e+10 | D124: 7588207867 | E124: 1386705621 | F124: 931416671 | G124: 3455738228 | H124: 1814347347 | I124: 361480.1026 | L124: 2.357143 | M124: 2.755102 | N124: 3.25 | Q124: 0.03368454 | R124: 0.769508 | S124: 96.95393045 | T124: 88.96371937 | U124: 44.04263306 | V124: 19.71528816 | W124: 2.717945814 | X124: 0.2319241464 | Y124: -0.3573026061 | Z124: 1209299.233 | AA124: 0.80412 | AB124: 0.80412 | AC124: 0.036 | AD124: 0.7803412732 | AE124: -0.2102686004 | AF124: 2.672035086e+10 | AG124: 1209299232800 | AH124: 2.209573126
A125: Spain | B125: 2006 | C125: 3.298982105e+10 | D125: 5548322630 | E125: 1282973046 | F125: 892889561 | G125: 2189232964 | H125: 1183227059 | I125: 424840.3472 | J125: 0.036 | L125: 2.357143 | M125: 2.755102 | N125: 3.25 | Q125: 0.03515375 | R125: 0.736761 | S125: 98.00572518 | T125: 92.09112764 | U125: 44.72553253 | V125: 20.5064888 | W125: 2.734758139 | X125: 0.2268912494 | Y125: -0.3587243557 | Z125: 1368114.426 | AA125: 0.797141 | AB125: 0.797141 | AC125: 0.036 | AD125: 0.5087496663 | AE125: -0.2715916068 | AF125: 3.298982105e+10 | AG125: 1368114426400 | AH125: 2.41133493
A126: Spain | B126: 2007 | C126: 7.377282215e+10 | D126: 6120961474 | E126: 813509197 | F126: 806405237 | G126: 2663447015 | H126: 1837600025 | I126: 457705.2481 | L126: 2.357143 | M126: 2.755102 | N126: 3 | Q126: 0.0278703 | R126: 0.733118 | S126: 100 | T126: 94.65773543 | U126: 45.39385986 | V126: 21.10105515 | W126: 2.751674175 | X126: 0.2321650386 | Y126: -0.3676522672 | Z126: 1474260.431 | AA126: 0.730638 | AB126: 0.730638 | AC126: 0.036 | AD126: 0.5682548891 | AE126: 0.05950522277 | AF126: 7.377282215e+10 | AG126: 1474260430800 | AH126: 5.004056313
A127: Spain | B127: 2008 | C127: 7.95577881e+10 | D127: 4939730122 | E127: 750836720 | F127: 780539066 | G127: 2618305845 | H127: 790048491 | I127: 449209.2981 | K127: 0.64475 | L127: 2.357143 | M127: 2.755102 | N127: 3 | Q127: 0.04075661 | R127: 0.725862 | S127: 102.5056324 | T127: 98.51566362 | U127: 45.99780655 | V127: 21.08214951 | W127: 2.768695116 | X127: 0.2337004691 | Y127: -0.3749540746 | Z127: 1537792.117 | AA127: 0.682675 | AB127: 0.682675 | AC127: 0.036 | AD127: 0.4705346313 | AE127: -0.09772025782 | AF127: 7.95577881e+10 | AG127: 1537792117000 | AH127: 5.173507344
A128: Spain | B128: 2009 | C128: 1.347874038e+10 | D128: 4799000506 | E128: 800602839 | F128: 660321450 | G128: 2458215559 | H128: 879860658 | I128: 365326.189 | K128: 0.5995 | L128: 2.357143 | M128: 2.755102 | N128: 3 | Q128: -0.002879968 | R128: 0.718533 | S128: 101.957949 | T128: 98.23194162 | U128: 46.4760704 | V128: 19.78941917 | W128: 2.785821199 | X128: 0.2037827969 | Y128: -0.283643961 | Z128: 1501742.692 | AA128: 0.719843 | AB128: 0.719843 | AC128: 0.036 | AD128: 0.4439330542 | AE128: -0.02660157708 | AF128: 1.347874038e+10 | AG128: 1501742691900 | AH128: 0.8975399347
A129: Spain | B129: 2010 | C129: 4.102005412e+10 | D129: 6002415426 | E129: 1920110734 | F129: 945700436 | G129: 2758189539 | H129: 378414717 | I129: 342493.8556 | J129: 0.021 | K129: 0.5885 | L129: 2.357143 | M129: 2.755102 | N129: 3 | Q129: 0.01799881 | R129: 0.726982 | S129: 98.51771725 | T129: 100 | U129: 46.78863144 | V129: 19.4864006 | W129: 2.803053141 | X129: 0.2275618911 | Y129: -0.3113852441 | Z129: 1486879.218 | AA129: 0.755045 | AB129: 0.755045 | AC129: 0.021 | AD129: 0.5346597885 | AE129: 0.09072673427 | AF129: 4.102005412e+10 | AG129: 1486879217900 | AH129: 2.758802035
A130: Spain | B130: 2011 | C130: 3.178213956e+10 | D130: 6461627078 | E130: 854213247 | F130: 1081368422 | G130: 2916887742 | H130: 1609157667 | I130: 321908.2127 | J130: 0.021 | K130: 0.58025 | L130: 2.214286 | M130: 2.653061 | N130: 2.5625 | Q130: 0.03196146 | R130: 0.714129 | S130: 99.10404091 | T130: 103.1961464 | U130: 46.90913773 | V130: 18.94491196 | W130: 2.82275176 | X130: 0.2647044063 | Y130: -0.3495109677 | Z130: 1498957.406 | AA130: 0.719355 | AB130: 0.719355 | AC130: 0.021 | AD130: 0.5992517776 | AE130: 0.06459198908 | AF130: 3.178213956e+10 | AG130: 1498957406200 | AH130: 2.120283033
A131: Spain | B131: 2012 | C131: 2.491515898e+10 | D131: 7248615492 | E131: 844435091 | F131: 1006027191 | G131: 3993226924 | H131: 1404926286 | I131: 296181.4479 | J131: 0.021 | K131: 0.5575 | L131: 2.214286 | M131: 2.653061 | N131: 2.6875 | Q131: 0.02446 | R131: 0.694976 | S131: 96.7508464 | T131: 105.7203243 | U131: 46.8574028 | V131: 18.14996147 | W131: 2.842588425 | X131: 0.2616590559 | Y131: -0.3253887892 | Z131: 1496188.343 | AA131: 0.778294 | AB131: 0.778294 | AC131: 0.021 | AD131: =D131/AB131/(Z131*1000000)*100 -> 0.6224795866 | AE131: 0.023227809 | AF131: =C131 -> 2.491515898e+10 | AG131: =Z131*1000000 -> 1496188342500 | AH131: =AF131/AG131*100 -> 1.665242154
A132: Spain | B132: 2013 | C132: 5.228769061e+10 | D132: 6970115405 | E132: 647657517 | F132: 1209635852 | G132: 3843140885 | H132: 1269681151 | I132: 285078.4932 | J132: 0.021 | K132: 0.54825 | L132: 2.047619 | M132: 2.426871 | N132: 2.5625 | Q132: 0.01408546 | R132: 0.6748 | S132: 98.81247466 | T132: 107.2094441 | U132: 46.69755173 | V132: 17.67177773 | W132: 2.862564802 | X132: 0.2862451971 | Y132: -0.3370555639 | Z132: 1519995.295 | AA132: 0.753159 | AB132: 0.753159 | AC132: 0.021 | AD132: 0.6088510439 | AE132: =AD132-AD131 -> -0.01362854265 | AF132: 5.228769061e+10 | AG132: 1519995295200 | AH132: 3.439990293
A133: Spain | B133: 2014 | C133: 3.48897569e+10 | D133: 4617994821 | E133: 682373709 | F133: 1085454476 | G133: 2513972993 | H133: 336193643 | I133: 302351.3368 | J133: 0.021 | K133: 0.56 | O133: 577888.7945 | Q133: -0.001508703 | R133: 0.662359 | S133: 98.2244313 | T133: 107.0476968 | U133: 46.5218277 | V133: 17.83322334 | W133: 2.88268137 | X133: 0.2905044258 | Y133: -0.3526698351 | Z133: 1566855.239 | AA133: 0.753731 | AB133: 0.753731 | AC133: 0.021 | AD133: 0.3910283001 | AE133: -0.2178227438 | AF133: 3.48897569e+10 | AG133: 1566855238700 | AH133: 2.226737738
A134: Spain | B134: 2015 | C134: 2.5350485e+10 | D134: 4090357394 | E134: 191635275 | F134: 283242124 | G134: 3074885567 | H134: 540594428 | I134: 323121.2294 | J134: 0.021 | K134: 0.578 | O134: 529476.3201 | Q134: -0.005004613 | R134: 0.664562 | S134: 93.56378402 | T134: 106.5119645 | U134: 46.39766312 | V134: 18.27521515 | W134: 2.902939558 | X134: 0.2634493113 | Y134: -0.3101805449 | Z134: 1626884.257 | AA134: 0.901659 | AB134: 0.901659 | AC134: 0.021 | AD134: 0.278844625 | AE134: -0.1121836751 | AF134: 2.5350485e+10 | AG134: 1626884256900 | AH134: 1.55822302
A135: Spain | B135: 2016 | C135: 3.977617676e+10 | D135: 2465482712 | G135: 1613745397 | H135: 851737315 | I135: 340394.7836 | J135: 0.021 | K135: 0.5955 | O135: 544505.1123 | Q135: -0.002026717 | R135: 0.655507 | S135: 93.72529761 | T135: 106.2960949 | U135: 46.34757614 | V135: 18.69903374 | W135: 2.923339844 | X135: 0.258980751 | Y135: -0.2965141237 | Z135: 1706684.779 | AA135: 0.904035 | AB135: 0.904035 | AC135: 0.021 | AD135: 0.1597950794 | AE135: -0.1190495456 | AF135: 3.977617676e+10 | AG135: 1706684778700 | AH135: 2.330610623
A136: Spain | B136: 2017 | C136: 6203743186 | I136: 372646.5871 | J136: 0.021 | K136: 0.611 | O136: 634383.5452 | Q136: 0.01956083 | R136: 0.64123 | S136: 94.36440309 | T136: 108.3753351 | U136: 46.35432053 | V136: 19.17537117 | W136: 2.943883657 | X136: 0.2643309534 | Y136: -0.3045045733 | Z136: 1818879.084 | AA136: 0.887397 | AB136: 0.887397 | AC136: 0.021 | AD136: 0 | AE136: -0.1597950794 | AF136: 6203743186 | AG136: 1818879083700 | AH136: 0.3410750743
A137: Finland | B137: 2003 | C137: 5963557456 | D137: 279157285 | F137: 23173525 | G137: 110991307 | H137: 144992453 | I137: 32949.4365 | J137: 0.178 | L137: 2.166667 | M137: 2.083333 | N137: 1.5625 | Q137: 0.008774385 | R137: 1.003113 | S137: 102.9041784 | T137: 90.47857257 | U137: 5.227103233 | V137: 2.366578817 | W137: 3.191524982 | X137: 0.517817378 | Y137: -0.4284748733 | Z137: 151098.6672 | AA137: 0.886034 | AB137: 0.886034 | AC137: 0.178 | AD137: 0.2085153084 | AE137: 0.2085153084 | AF137: 5963557456 | AG137: 151098667200 | AH137: 3.946796862
A138: Finland | B138: 2004 | C138: 6771281519 | D138: 330032108 | F138: 51966705 | G138: 143163438 | H138: 134901965 | I138: 36272.5283 | L138: 2.166667 | M138: 2.083333 | N138: 1.5625 | Q138: 0.001871234 | R138: 0.974098 | S138: 103.1148348 | T138: 90.64787658 | U138: 5.242185116 | V138: 2.379961967 | W138: 3.21173048 | X138: 0.5407579541 | Y138: -0.4675556123 | Z138: 162691.0105 | AA138: 0.805365 | AB138: 0.805365 | AC138: 0.178 | AD138: 0.251883596 | AE138: 0.04336828757 | AF138: 6771281519 | AG138: 162691010500 | AH138: 4.162050195
A139: Finland | B139: 2005 | C139: 1.087582841e+10 | D139: 263206839 | F139: 28601026 | G139: 119565097 | H139: 115040716 | I139: 38531.8229 | L139: 2.166667 | M139: 2.083333 | N139: 1.5625 | O139: 54800.04719 | P139: 0.2680614681 | Q139: 0.006238712 | R139: 0.979424 | S139: 100.4435165 | T139: 91.21340552 | U139: 5.258926868 | V139: 2.4164958 | W139: 3.232064009 | X139: 0.5477491021 | Y139: -0.4946126044 | Z139: 167840.4509 | AA139: 0.80412 | AB139: 0.80412 | AC139: 0.178 | AD139: 0.1950202316 | AE139: -0.05686336435 | AF139: 1.087582841e+10 | AG139: 167840450900 | AH139: 6.479861291
A140: Finland | B140: 2006 | C140: 4631613504 | D140: 300773597 | F140: 55681341 | G140: 119962119 | H140: 125130137 | I140: 41236.9446 | J140: 0.055 | L140: 2.166667 | M140: 2.083333 | N140: 1.5625 | O140: 70568.94508 | P140: 0.3258912387 | Q140: 0.01566667 | R140: 0.953853 | S140: 98.9933399 | T140: 92.64241293 | U140: 5.277569771 | V140: 2.459867716 | W140: 3.252526522 | X140: 0.6054962873 | Y140: -0.5502841473 | Z140: 180964.9146 | AA140: 0.797141 | AB140: 0.797141 | AC140: 0.055 | AD140: 0.2085019785 | AE140: 0.01348174681 | AF140: 4631613504 | AG140: 180964914600 | AH140: 2.559398607
A141: Finland | B141: 2007 | C141: 2.198506616e+10 | D141: 555861041 | F141: 257216720 | G141: 152747837 | H141: 145896484 | I141: 48201.3832 | L141: 2.166667 | M141: 2.083333 | N141: 1.5625 | O141: 91703.22391 | P141: 0.3590973304 | Q141: 0.02510666 | R141: 0.93572 | S141: 100 | T141: 94.96835417 | U141: 5.298014164 | V141: 2.511305571 | W141: 3.273118258 | X141: 0.5976141691 | Y141: -0.5515415668 | Z141: 199401.5227 | AA141: 0.730638 | AB141: 0.730638 | AC141: 0.055 | AD141: 0.3815359894 | AE141: 0.1730340109 | AF141: 2.198506616e+10 | AG141: 199401522700 | AH141: 11.02552571
A142: Finland | B142: 2008 | C142: 1.94031766e+10 | D142: 437653392 | F142: 249536466 | G142: 103522440 | H142: 84594486 | I142: 51796.6445 | K142: 0.7105 | L142: 2.166667 | M142: 2.011905 | N142: 1.5625 | O142: 83539.31802 | P142: 0.2944085808 | Q142: 0.04065952 | R142: 0.912125 | S142: 102.3660615 | T142: 98.82972334 | U142: 5.319901943 | V142: 2.565836191 | W142: 3.293840408 | X142: 0.5785945058 | Y142: -0.5790299177 | Z142: 212373.3688 | AA142: 0.682675 | AB142: 0.682675 | AC142: 0.055 | AD142: 0.3018674205 | AE142: -0.07966856889 | AF142: 1.94031766e+10 | AG142: 212373368800 | AH142: 9.136351091
A143: Finland | B143: 2009 | C143: -8826514767 | D143: 443150045 | F143: 257493771 | G143: 115942114 | H143: 69714160 | I143: 45951.32 | K143: 0.68725 | L143: 2.166667 | M143: 2.011905 | N143: 1.5625 | O143: 85169.28396 | P143: 0.3386669443 | Q143: -1.22217e-16 | R143: 0.896318 | S143: 104.2109455 | T143: 98.82972244 | U143: 5.342646122 | V143: 2.502768517 | W143: 3.314693928 | X143: 0.4240843952 | Y143: -0.4377386272 | Z143: 201969.5903 | AA143: 0.719843 | AB143: 0.719843 | AC143: 0.055 | AD143: 0.3048084675 | AE143: 0.002941047047 | AF143: -8826514767 | AG143: 201969590300 | AH143: -4.370219672
A144: Finland | B144: 2010 | C144: 1.222643762e+10 | D144: 435340014 | F144: 287104799 | G144: 111418787 | H144: 36816428 | I144: 45453.437 | J144: 0.019 | K144: 0.6815 | L144: 2.166667 | M144: 2.011905 | N144: 1.5625 | O144: 85855.15767 | P144: 0.3464698425 | Q144: 0.01184135 | R144: 0.900548 | S144: 98.72427646 | T144: 100 | U144: 5.365781784 | V144: 2.484925508 | W144: 3.335679293 | X144: 0.4601361156 | Y144: -0.478036046 | Z144: 207762.3937 | AA144: 0.755045 | AB144: 0.755045 | AC144: 0.019 | AD144: 0.2775165007 | AE144: -0.02729196687 | AF144: 1.222643762e+10 | AG144: 207762393700 | AH144: 5.884817458
A145: Finland | B145: 2011 | C145: -6008160154 | D145: 586935415 | F145: 300041666 | G145: 177708428 | H145: 109185321 | I145: 48748.0045 | J145: 0.019 | K145: 0.69025 | L145: 2.166667 | M145: 2.011905 | N145: 1.5625 | O145: 89226.29059 | P145: 0.3260310639 | Q145: 0.03416809 | R145: 0.898068 | S145: 98.96619221 | T145: 103.4168075 | U145: 5.389242172 | V145: 2.515952826 | W145: 3.354023218 | X145: 0.4825193286 | Y145: -0.558796227 | Z145: 219214.027 | AA145: 0.719355 | AB145: 0.719355 | AC145: 0.019 | AD145: 0.372202005 | AE145: 0.09468550439 | AF145: -6008160154 | AG145: 219214027000 | AH145: -2.740773589
A146: Finland | B146: 2012 | C146: 4932843235 | D146: 556068701 | F146: 323482198 | G146: 104391519 | H146: 128194984 | I146: 49103.1612 | J146: 0.019 | K146: 0.69375 | L146: 2.166667 | M146: 2.011905 | N146: 1.5625 | O146: 96635.88391 | P146: 0.3764450215 | Q146: 0.02808332 | R146: 0.908495 | S146: 96.46796271 | T146: 106.3210992 | U146: 5.41298008 | V146: 2.537135601 | W146: 3.372467756 | X146: 0.4547219276 | Y146: -0.5204831362 | Z146: 219916.339 | AA146: 0.778294 | AB146: 0.778294 | AC146: 0.019 | AD146: 0.3248832129 | AE146: -0.0473187921 | AF146: 4932843235 | AG146: 219916339000 | AH146: 2.243054453
A147: Finland | B147: 2013 | C147: -4940707106 | D147: 647718636 | F147: 312998809 | G147: 211287536 | H147: 123432291 | I147: 47586.742 | J147: 0.019 | K147: 0.68875 | L147: 2.166667 | M147: 2.011905 | N147: 1.5625 | O147: 88762.92925 | P147: B | Q147: 0.01478288 | R147: 0.905357 | S147: 99.75886064 | T147: 107.8928293 | U147: 5.436615944 | V147: 2.518508196 | W147: 3.391013861 | X147: 0.4838802218 | Y147: -0.5687378049 | Z147: 224594.224 | AA147: 0.753159 | AB147: 0.753159 | AC147: 0.019 | AD147: 0.3829139067 | AE147: 0.05803069378 | AF147: -4940707106 | AG147: 224594224000 | AH147: -2.199837119
A148: Finland | B148: 2014 | C148: 1.724359834e+10 | D148: 351703780 | F148: 136552527 | G148: 133791761 | H148: 81359492 | I148: 46554.8389 | J148: 0.019 | K148: 0.68725 | O148: 93895.83586 | Q148: 0.010412 | R148: 0.90721 | S148: 101.2924751 | T148: 109.0162054 | U148: 5.459716797 | V148: 2.50667572 | W148: 3.409662008 | X148: 0.4742061794 | Y148: -0.5490399599 | Z148: 226490.0902 | AA148: 0.753731 | AB148: 0.753731 | AC148: 0.019 | AD148: 0.2060209824 | AE148: -0.1768929244 | AF148: 1.724359834e+10 | AG148: 226490090200 | AH148: 7.613400801
A149: Finland | B149: 2015 | C149: 1.684322852e+10 | D149: 132487400 | F149: 40018365 | G149: 72164051 | H149: 20304984 | I149: 47066.455 | J149: 0.019 | K149: 0.6855 | O149: 81626.56505 | Q149: -0.00207932 | R149: 0.907504 | S149: 96.59641257 | T149: 108.7895292 | U149: 5.481966019 | V149: 2.505212784 | W149: 3.428412676 | X149: 0.4033660293 | Y149: -0.4510292113 | Z149: 231351.0257 | AA149: 0.901659 | AB149: 0.901659 | AC149: 0.019 | AD149: 0.06351273664 | AE149: -0.1425082457 | AF149: 1.684322852e+10 | AG149: 231351025700 | AH149: 7.280377717
A150: Finland | B150: 2016 | C150: 4503963931 | D150: 354021 | G150: 354021 | I150: 52098.3893 | J150: 0.019 | K150: 0.69075 | O150: 80562.87551 | Q150: 0.003566845 | R150: 0.899145 | S150: 97.39667637 | T150: 109.1775646 | U150: 5.503131866 | V150: 2.513976574 | W150: 3.44726634 | X150: 0.3809678555 | Y150: -0.4375014603 | Z150: 240309.4371 | AA150: 0.904035 | AB150: 0.904035 | AC150: 0.019 | AD150: 0.0001629569748 | AE150: -0.06334977967 | AF150: 4503963931 | AG150: 240309437100 | AH150: 1.874235147
A151: Finland | B151: 2017 | C151: 1.419791687e+10 | I151: 56541.1466 | J151: 0.019 | K151: 0.69975 | O151: 88109.85848 | Q151: 0.00754015 | R151: 0.877078 | S151: 96.8493593 | T151: 110.0007799 | U151: 5.52323103 | V151: 2.526444435 | W151: 3.466223955 | X151: 0.3989678621 | Y151: -0.4430803061 | Z151: 255270.3193 | AA151: 0.887397 | AB151: 0.887397 | AC151: 0.019 | AD151: 0 | AE151: -0.0001629569748 | AF151: 1.419791687e+10 | AG151: 255270319300 | AH151: 5.561914486
A152: France | B152: 2003 | C152: 4.232492876e+10 | D152: 1944899730 | F152: 101860287 | G152: 1267835660 | H152: 575203783 | I152: 368459.4753 | J152: 0.055 | L152: 2.468254 | M152: 2.727324 | N152: 3.625 | Q152: 0.02098472 | R152: 0.930925 | S152: 98.22822717 | T152: 89.25284626 | U152: 62.50452042 | V152: 26.31598091 | W152: 2.94016242 | X152: 0.3077593446 | Y152: -0.3092499375 | Z152: 1751662.756 | AA152: 0.886034 | AB152: 0.886034 | AC152: 0.055 | AD152: 0.1253130592 | AE152: 0.1253130592 | AF152: 4.232492876e+10 | AG152: 1751662756500 | AH152: 2.416271545
A153: France | B153: 2004 | C153: 3.558120249e+10 | D153: 2204201873 | F153: 123613791 | G153: 1407896813 | H153: 672691269 | I153: 388958.3052 | L153: 2.468254 | M153: 2.727324 | N153: 3.625 | Q153: 0.0214209 | R153: 0.935979 | S153: 100.6076093 | T153: 91.16472224 | U153: 62.86979675 | V153: 26.30957413 | W153: 2.956497908 | X153: 0.3269364238 | Y153: -0.3415364623 | Z153: 1820572.993 | AA153: 0.805365 | AB153: 0.805365 | AC153: 0.055 | AD153: 0.1503316829 | AE153: 0.02501862367 | AF153: 3.558120249e+10 | AG153: 1820572993300 | AH153: 1.954395821
A154: France | B154: 2005 | C154: 8.517915979e+10 | D154: 2162062461 | F154: 142002455 | G154: 1224769071 | H154: 795290935 | I154: 420010.5055 | L154: 2.468254 | M154: 2.727324 | N154: 3.625 | O154: 371436.2534 | Q154: 0.01745869 | R154: 0.916458 | S154: 99.35534355 | T154: 92.75633919 | U154: 63.24402237 | V154: 26.45080757 | W154: 2.972923994 | X154: 0.3200460374 | Y154: -0.3374487162 | Z154: 1926880.385 | AA154: 0.80412 | AB154: 0.80412 | AC154: 0.055 | AD154: 0.1395380394 | AE154: -0.01079364349 | AF154: 8.517915979e+10 | AG154: 1926880385300 | AH154: 4.420573297
A155: France | B155: 2006 | C155: 7.894570492e+10 | D155: 2037141563 | F155: 124744749 | G155: 995764305 | H155: 916632509 | I155: 463281.8421 | J155: 0.045 | L155: 2.468254 | M155: 2.727324 | N155: 3.625 | O155: 493763.5467 | Q155: 0.01675125 | R155: 0.895617 | S155: 98.79486422 | T155: 94.31012335 | U155: 63.62795258 | V155: 26.71904182 | W155: 2.989441156 | X155: 0.3307958841 | Y155: -0.3559350967 | Z155: 2063551.068 | AA155: 0.797141 | AB155: 0.797141 | AC155: 0.045 | AD155: 0.1238428225 | AE155: -0.01569521691 | AF155: 7.894570492e+10 | AG155: 2063551068000 | AH155: 3.825720921
A156: France | B156: 2007 | C156: 8.378096209e+10 | D156: 3199853066 | F156: 926331345 | G156: 1169708424 | H156: 1103813297 | I156: 505894.0713 | L156: 2.468254 | M156: 2.727324 | N156: 3.625 | O156: 623627.8596 | Q156: 0.01487998 | R156: 0.889631 | S156: 100 | T156: 95.71345616 | U156: 64.01905823 | V156: 27.0953064 | W156: 3.006050348 | X156: 0.3274590075 | Y156: -0.3611249924 | Z156: 2182208.365 | AA156: 0.730638 | AB156: 0.730638 | AC156: 0.045 | AD156: 0.2006926948 | AE156: 0.07684987232 | AF156: 8.378096209e+10 | AG156: 2.182208365e+12 | AH156: 3.839274171
A157: France | B157: 2008 | C157: 6.799919466e+10 | D157: 3086012422 | F157: 944231170 | G157: 1187932028 | H157: 953849224 | I157: 533095.16 | K157: 0.64925 | L157: 2.468254 | M157: 2.727324 | N157: 3.625 | O157: 563039.7954 | Q157: 0.02812862 | R157: 0.881874 | S157: 101.7821187 | T157: 98.40574355 | U157: 64.40908813 | V157: 27.23795509 | W157: 3.022751808 | X157: 0.3329876363 | Y157: -0.3954354525 | Z157: 2259255.844 | AA157: 0.682675 | AB157: 0.682675 | AC157: 0.045 | AD157: 0.2000867162 | AE157: -0.0006059786271 | AF157: 6.799919466e+10 | AG157: 2259255843600 | AH157: 3.00980497
A158: France | B158: 2009 | C158: 1.838019579e+10 | D158: 2552417051 | F158: 723214716 | G158: 877815082 | H158: 951387253 | I158: 495277.5066 | K158: 0.64075 | L158: 2.384921 | M158: 2.6678 | N158: 3.625 | O158: 648064.6045 | Q158: 0.0008762048 | R158: 0.862789 | S158: 101.3838936 | T158: 98.49196713 | U158: 64.78723145 | V158: 26.95141983 | W158: 3.039546251 | X158: 0.2806874216 | Y158: -0.3300569355 | Z158: 2244374.848 | AA158: 0.719843 | AB158: 0.719843 | AC158: 0.045 | AD158: 0.1579859472 | AE158: -0.04210076892 | AF158: 1.838019579e+10 | AG158: 2244374847600 | AH158: 0.8189450088
A159: France | B159: 2010 | C159: 3.889992464e+10 | D159: 2183685841 | F159: 796415776 | G159: 824081645 | H159: 563188420 | I159: 516048.9254 | J159: 0.045 | K159: 0.64 | L159: 2.384921 | M159: 2.6678 | N159: 3.625 | O159: 630691.9736 | Q159: 0.01531123 | R159: 0.8547 | S159: 97.42863996 | T159: 100 | U159: 65.14578247 | V159: 26.998312 | W159: 3.056433678 | X159: 0.2961075604 | Y159: -0.3526647389 | Z159: 2334490.552 | AA159: 0.755045 | AB159: 0.755045 | AC159: 0.045 | AD159: 0.1238868474 | AE159: -0.03409909979 | AF159: 3.889992464e+10 | AG159: 2334490551900 | AH159: 1.666313218
A160: France | B160: 2011 | C160: 4.419174184e+10 | D160: 2602380178 | F160: 1020054973 | G160: 1216011091 | H160: 366314114 | I160: 548594.2847 | J160: 0.045 | K160: 0.639 | L160: 2.384921 | M160: 2.6678 | N160: 3.625 | O160: 698832.2316 | Q160: 0.02111598 | R160: 0.841361 | S160: 97.06121366 | T160: 102.111598 | U160: 65.48111725 | V160: 27.22044563 | W160: 3.075263262 | X160: 0.3117506206 | Y160: -0.3824828863 | Z160: 2446474.544 | AA160: 0.719355 | AB160: 0.719355 | AC160: 0.045 | AD160: 0.1478722818 | AE160: 0.02398543439 | AF160: 4.419174184e+10 | AG160: 2446474543600 | AH160: 1.806343825
A161: France | B161: 2012 | C161: 3.295045383e+10 | D161: 2287041884 | F161: 944561010 | G161: 752682378 | H161: 589798496 | I161: 555614.9473 | J161: 0.045 | K161: 0.64025 | L161: 2.384921 | M161: 2.6678 | N161: 3.625 | O161: 680337.2272 | Q161: 0.01954195 | R161: 0.844301 | S161: 94.0838275 | T161: 104.107058 | U161: 65.79512787 | V161: 27.30746269 | W161: 3.094208956 | X161: 0.3029477 | Y161: -0.373619169 | Z161: 2474005.287 | AA161: 0.778294 | AB161: 0.778294 | AC161: 0.045 | AD161: 0.1187763054 | AE161: -0.0290959764 | AF161: 3.295045383e+10 | AG161: 2474005287300 | AH161: 1.331866751
A162: France | B162: 2013 | C162: 3.158925964e+10 | D162: 3289435692 | F162: 959659909 | G162: 1327994182 | H162: 1001781601 | I162: 574967.3018 | J162: 0.045 | K162: 0.6405 | L162: 2.384921 | M162: 2.6678 | N162: 3.625 | O162: 761382.7203 | Q162: 0.008637155 | R162: 0.811643 | S162: 95.94869201 | T162: 105.0062468 | U162: 66.09255981 | V162: 27.35943604 | W162: 3.113271475 | X162: 0.3002566993 | Y162: -0.3666787446 | Z162: 2608523.504 | AA162: 0.753159 | AB162: 0.753159 | AC162: 0.045 | AD162: 0.1674325825 | AE162: 0.0486562771 | AF162: 3.158925964e+10 | AG162: 2608523504200 | AH162: 1.211001534
A163: France | B163: 2014 | C163: 5809580555 | D163: 2794682686 | F163: 584271625 | G163: 1391386911 | H163: 819024150 | I163: 580848.4861 | J163: 0.045 | K163: 0.6365 | O163: 700026.6255 | Q163: 0.005077588 | R163: 0.807565 | S163: 96.11311317 | T163: 105.5394253 | U163: 66.38085175 | V163: 27.42234993 | W163: 3.132451296 | X163: 0.2966262698 | Y163: -0.3576132655 | Z163: 2662032.873 | AA163: 0.753731 | AB163: 0.753731 | AC163: 0.045 | AD163: 0.1392844753 | AE163: -0.02814810721 | AF163: 5809580555 | AG163: 2662032872600 | AH163: 0.2182384979
A164: France | B164: 2015 | C164: 4.280325508e+10 | D164: 2398846951 | F164: 251496478 | G164: 1154086069 | H164: 993264404 | I164: 584613.6301 | J164: 0.045 | K164: 0.63825 | O164: 687394.4104 | Q164: 0.0003751438 | R164: 0.808478 | S164: 91.22919393 | T164: 105.5790178 | U164: 66.66553497 | V164: 27.43798447 | W164: 3.151749134 | X164: 0.2755285203 | Y164: -0.3226306438 | Z164: 2719224.521 | AA164: 0.901659 | AB164: 0.901659 | AC164: 0.045 | AD164: 0.0978397086 | AE164: -0.04144476672 | AF164: 4.280325508e+10 | AG164: 2719224520500 | AH164: 1.574097863
A165: France | B165: 2016 | C165: 4.534968128e+10 | D165: 389799706 | G165: 264253592 | H165: 125546114 | I165: 614075.0641 | J165: 0.045 | K165: 0.642 | O165: 704872.4553 | Q165: 0.001833349 | R165: 0.794704 | S165: 91.97885135 | T165: 105.7725809 | U165: 66.94789124 | V165: 27.62247467 | W165: 3.171165943 | X165: 0.2706466019 | Y165: -0.315338254 | Z165: 2804273.777 | AA165: 0.904035 | AB165: 0.904035 | AC165: 0.045 | AD165: 0.01537573381 | AE165: -0.0824639748 | AF165: 4.534968128e+10 | AG165: 2804273777100 | AH165: 1.617163119
A166: France | B166: 2017 | C166: 4.733561862e+10 | I166: 665212.0446 | J166: 0.045 | K166: 0.64725 | O166: 874542.079 | Q166: 0.01032283 | R166: 0.775574 | S166: 92.31678032 | T166: 106.864453 | U166: 67.22634888 | V166: 27.90513229 | W166: 3.190702438 | X166: 0.2769559026 | Y166: -0.3222488761 | Z166: 2954840.852 | AA166: 0.887397 | AB166: 0.887397 | AC166: 0.045 | AD166: 0 | AE166: -0.01537573381 | AF166: 4.733561862e+10 | AG166: 2954840851700 | AH166: 1.601968464
A167: United Kingdom | B167: 2003 | C167: 3.601124047e+10 | D167: 1322296988 | F167: 36606761 | G167: 935124927 | H167: 350565300 | I167: 307417.0598 | J167: 0.059 | L167: 1.261905 | M167: 1.722789 | N167: 0.375 | Q167: 0.014 | R167: 0.69665 | S167: 95.46468944 | T167: 85.13038654 | U167: 59.58022308 | V167: 28.06890488 | W167: 3.566566467 | X167: 0.27842471 | Y167: -0.3642727137 | Z167: 1796953.353 | AA167: 0.612472 | AB167: 0.886034 | AC167: 0.059 | AD167: 0.08305041706 | AE167: 0.08305041706 | AF167: 3.601124047e+10 | AG167: 1796953353100 | AH167: 2.004016432
A168: United Kingdom | B168: 2004 | C168: 8.705962138e+10 | D168: 1861400606 | F168: 66487387 | G168: 1454055587 | H168: 340857632 | I168: 323587.2431 | L168: 1.261905 | M168: 1.722789 | N168: 0.375 | Q168: 0.014 | R168: 0.688467 | S168: 99.40760107 | T168: 86.31403736 | U168: 59.88412857 | V168: 28.35891914 | W168: 3.585762978 | X168: 0.289057821 | Y168: -0.3924688101 | Z168: 1906924.829 | AA168: 0.54618 | AB168: 0.805365 | AC168: 0.059 | AD168: 0.1212030436 | AE168: 0.03815262649 | AF168: 8.705962138e+10 | AG168: 1906924828900 | AH168: 4.565445898
A169: United Kingdom | B169: 2005 | C169: 2.526533971e+11 | D169: 3215429518 | F169: 127569946 | G169: 1861027588 | H169: 1226831984 | I169: 336924.2412 | L169: 1.261905 | M169: 1.722789 | N169: 0.375 | O169: 788087.1212 | Q169: 0.021 | R169: 0.707619 | S169: 97.47639276 | T169: 88.11725541 | U169: 60.28675461 | V169: 28.67201614 | W169: 3.605062723 | X169: 0.3017850518 | Y169: -0.3805457354 | Z169: 1962571.622 | AA169: 0.549998 | AB169: 0.80412 | AC169: 0.059 | AD169: 0.2037476534 | AE169: 0.0825446098 | AF169: 2.526533971e+11 | AG169: 1962571622000 | AH169: 12.87358863
A170: United Kingdom | B170: 2006 | C170: 2.036364319e+11 | D170: 2945711998 | F170: 108445329 | G170: 901328376 | H170: 1935938293 | I170: 365434.7904 | J170: 0.056 | L170: 1.261905 | M170: 1.722789 | N170: 0.375 | O170: 1035255.202 | Q170: 0.025 | R170: 0.697211 | S170: 97.79196689 | T170: 90.28111707 | U170: 60.80279922 | V170: 28.99222755 | W170: 3.624466658 | X170: 0.3302603066 | Y170: -0.423273623 | Z170: 2102524.05 | AA170: 0.543487 | AB170: 0.797141 | AC170: 0.056 | AD170: 0.1757576205 | AE170: -0.02799003287 | AF170: 2.036364319e+11 | AG170: 2102524050400 | AH170: 9.685331867
A171: United Kingdom | B171: 2007 | C171: 2.095149596e+11 | D171: 2536802262 | F171: 284219052 | G171: 1020743031 | H171: 1231840179 | I171: 388300.5035 | L171: 1.261905 | M171: 1.722789 | N171: 0.375 | O171: 1124764.576 | Q171: 0.024 | R171: 0.709924 | S171: 100 | T171: 92.43573146 | U171: 61.41466141 | V171: 29.29642105 | W171: 3.643974781 | X171: 0.2996557355 | Y171: -0.4292471409 | Z171: 2171276.281 | AA171: 0.499772 | AB171: 0.730638 | AC171: 0.056 | AD171: 0.1599076616 | AE171: -0.01584995893 | AF171: 2.095149596e+11 | AG171: 2.171276281e+12 | AH171: 9.649391996
A172: United Kingdom | B172: 2008 | C172: 2.534541179e+11 | D172: 2485275894 | F172: 413613645 | G172: 1260488992 | H172: 811173257 | I172: 386035.9373 | K172: 0.715 | L172: 1.261905 | M172: 1.722789 | N172: 0.375 | O172: 911115.1603 | Q172: 0.035 | R172: 0.701691 | S172: 87.22962055 | T172: 95.69077122 | U172: 62.07622147 | V172: 29.63037872 | W172: 3.663587809 | X172: 0.2890161276 | Y172: -0.4166994393 | Z172: 2251412.184 | AA172: 0.543966 | AB172: 0.682675 | AC172: 0.056 | AD172: 0.161698353 | AE172: 0.001790691445 | AF172: 2.534541179e+11 | AG172: 2251412184000 | AH172: 11.2575618
A173: United Kingdom | B173: 2009 | C173: 1.454710845e+10 | D173: 1597199280 | F173: 363331854 | G173: 616176553 | H173: 617690873 | I173: 334100.0749 | K173: 0.69875 | L173: 1.261905 | M173: 1.722789 | N173: 0.375 | O173: 1026350.826 | Q173: 0.02 | R173: 0.709928 | S173: 78.37747264 | T173: 97.56796745 | U173: 62.72260666 | V173: 29.23945808 | W173: 3.683306456 | X173: 0.2433501184 | Y173: -0.3742664754 | Z173: 2165308.295 | AA173: 0.641919 | AB173: 0.719843 | AC173: 0.056 | AD173: 0.102471143 | AE173: -0.05922721002 | AF173: 1.454710845e+10 | AG173: 2165308294700 | AH173: 0.6718262005
A174: United Kingdom | B174: 2010 | C174: 6.673455129e+10 | D174: 2164442230 | F174: 541470006 | G174: 860296795 | H174: 762675429 | I174: 349258.5854 | J174: 0.04 | K174: 0.69375 | L174: 1.261905 | M174: 1.722789 | N174: 0.375 | O174: 1068143.394 | Q174: 0.025 | R174: 0.702299 | S174: 79.34341054 | T174: 100 | U174: 63.3068428 | V174: 29.35419083 | W174: 3.703131437 | X174: 0.267149657 | Y174: -0.3939195573 | Z174: 2260384.41 | AA174: 0.647179 | AB174: 0.755045 | AC174: 0.04 | AD174: 0.1268209084 | AE174: 0.0243497654 | AF174: 6.673455129e+10 | AG174: 2260384409900 | AH174: 2.952354078
A175: United Kingdom | B175: 2011 | C175: 2.701205007e+10 | D175: 1854365206 | F175: 701688112 | G175: 702549666 | H175: 450127428 | I175: 361743.8763 | J175: 0.04 | K175: 0.693 | L175: 1.261905 | M175: 1.722789 | N175: 0.375 | O175: 1157484.539 | Q175: 0.038 | R175: 0.706052 | S175: 79.96941898 | T175: 103.8561124 | U175: 63.81188202 | V175: 29.50638771 | W175: 3.7108953 | X175: 0.3088896573 | Y175: -0.4300266802 | Z175: 2329213.597 | AA175: 0.624141 | AB175: 0.719355 | AC175: 0.04 | AD175: 0.1106732559 | AE175: -0.01614765247 | AF175: 2.701205007e+10 | AG175: 2329213596800 | AH175: 1.159706869
A176: United Kingdom | B176: 2012 | C176: 4.675078973e+10 | D176: 1958539793 | F176: 736336434 | G176: 490810370 | H176: 731392989 | I176: 380585.9768 | J176: 0.04 | K176: 0.6995 | L176: 1.261905 | M176: 1.722789 | N176: 0.375 | O176: 1440525.485 | Q176: 0.026 | R176: 0.701634 | S176: 83.20269058 | T176: 106.5285741 | U176: 64.25032806 | V176: 29.82540321 | W176: 3.718675613 | X176: 0.2824980915 | Y176: -0.4122123718 | Z176: 2414959.065 | AA176: 0.633047 | AB176: 0.778294 | AC176: 0.04 | AD176: 0.1042026932 | AE176: -0.006470562708 | AF176: 4.675078973e+10 | AG176: 2414959065300 | AH176: 1.93588332
A177: United Kingdom | B177: 2013 | C177: 5.44731754e+10 | D177: 1383304671 | F177: 790000707 | G177: 298927556 | H177: 294376408 | I177: 404757.7413 | J177: 0.04 | K177: 0.70525 | L177: 1.095238 | M177: 1.603742 | N177: 0.375 | O177: 1512648.221 | Q177: 0.023 | R177: 0.695248 | S177: 82.76768676 | T177: 108.9698539 | U177: 64.64111328 | V177: 30.15560532 | W177: 3.726472139 | X177: 0.3039326966 | Y177: -0.3743138015 | Z177: 2533408.314 | AA177: 0.639661 | AB177: 0.753159 | AC177: 0.04 | AD177: 0.07249799265 | AE177: -0.03170470054 | AF177: 5.44731754e+10 | AG177: 2533408313800 | AH177: 2.150193283
A178: United Kingdom | B178: 2014 | C178: 5.889044525e+10 | D178: 2292596511 | F178: 665101840 | G178: 1307080562 | H178: 320414109 | I178: 437754.8026 | J178: 0.04 | K178: 0.719 | L178: 1.095238 | M178: 1.532313 | N178: 0.375 | O178: 1581493.679 | Q178: 0.015 | R178: 0.698444 | S178: 88.52412318 | T178: 110.5511374 | U178: 65.01568604 | V178: 30.81433487 | W178: 3.734284878 | X178: 0.2774461508 | Y178: -0.3870963752 | Z178: 2640578.628 | AA178: 0.60773 | AB178: 0.753731 | AC178: 0.04 | AD178: 0.1151893017 | AE178: 0.04269130907 | AF178: 5.889044525e+10 | AG178: 2640578627900 | AH178: 2.230209873
A179: United Kingdom | B179: 2015 | C179: 4.533348312e+10 | D179: 1568824823 | F179: 97813689 | G179: 697403689 | H179: 773607445 | I179: 461363.3859 | J179: 0.04 | K179: 0.72725 | O179: 1530652.045 | Q179: 0.004 | R179: 0.692365 | S179: 93.08016401 | T179: 110.9580174 | U179: 65.39707947 | V179: 31.27807999 | W179: 3.742114305 | X179: 0.2646187544 | Y179: -0.3677781522 | Z179: 2738206.254 | AA179: 0.654545 | AB179: 0.901659 | AC179: 0.04 | AD179: 0.06354274504 | AE179: -0.05164655669 | AF179: 4.533348312e+10 | AG179: 2738206254000 | AH179: 1.655590519
A180: United Kingdom | B180: 2016 | C180: 2.658105667e+11 | D180: 690849002 | G180: 348631333 | H180: 342217669 | I180: 474415.83 | J180: 0.04 | K180: 0.735 | O180: 1475524.665 | Q180: 0.01 | R180: 0.698632 | S180: 82.54733547 | T180: 112.0769373 | U180: 65.78857422 | V180: 31.68385506 | W180: 3.749960184 | X180: 0.2339273691 | Y180: -0.3735612035 | Z180: 2819115.752 | AA180: 0.740634 | AB180: 0.904035 | AC180: 0.04 | AD180: 0.02710722007 | AE180: -0.03643552497 | AF180: 2.658105667e+11 | AG180: 2819115752500 | AH180: 9.428863161
A181: United Kingdom | B181: 2017 | C181: 6.468540097e+10 | I181: 508318.1072 | J181: 0.04 | K181: 0.74125 | O181: 1805842.454 | Q181: 0.026 | R181: 0.691089 | S181: 78.49899524 | T181: 114.9435916 | U181: 66.18158722 | V181: 31.98050308 | W181: 3.757822275 | X181: 0.2435507923 | Y181: -0.3800733089 | Z181: 2965796.454 | AA181: 0.777003 | AB181: 0.887397 | AC181: 0.04 | AD181: 0 | AE181: -0.02710722007 | AF181: 6.468540097e+10 | AG181: 2965796453800 | AH181: 2.181046541
A182: Greece | B182: 2003 | C182: 1407469096 | D182: 1565929660 | E182: 40077682 | F182: 136281737 | G182: 1001438010 | H182: 388132231 | I182: 66060.7958 | J182: 0.071 | L182: 2.801587 | M182: 2.929705 | N182: 4.75 | Q182: 0.03530651 | R182: 0.685841 | S182: 95.3317905 | T182: 80.07702324 | U182: 11.24356747 | V182: 4.656152725 | W182: 2.791336775 | X182: 0.09130090475 | Y182: -0.292773515 | Z182: 260854.3971 | AA182: 0.886034 | AB182: 0.886034 | AC182: 0.071 | AD182: 0.6775224663 | AE182: 0.6775224663 | AF182: 1407469096 | AG182: 260854397100 | AH182: 0.5395611927
A183: Greece | B183: 2004 | C183: 2147448817 | D183: 2726389068 | E183: 350758552 | F183: 293983112 | G183: 1559590366 | H183: 522057038 | I183: 67981.3299 | L183: 2.801587 | M183: 2.929705 | N183: 2.75 | Q183: 0.02898848 | R183: 0.695147 | S183: 97.83173909 | T183: 82.3983352 | U183: 11.27047634 | V183: 4.768033028 | W183: 2.812358141 | X183: 0.09023154527 | Y183: -0.309743464 | Z183: 278668.875 | AA183: 0.805365 | AB183: 0.805365 | AC183: 0.071 | AD183: 1.214805125 | AE183: 0.5372826588 | AF183: 2147448817 | AG183: 278668875000 | AH183: 0.7706094975
A184: Greece | B184: 2005 | C184: 689960219.9 | D184: 2556523643 | E184: 313814634 | F184: 374694770 | G184: 1286248936 | H184: 581765303 | I184: 58535.2674 | L184: 2.801587 | M184: 2.929705 | N184: 2.75 | O184: 29188.39212 | Q184: 0.03545073 | R184: 0.708976 | S184: 97.34249964 | T184: 85.31941677 | U184: 11.30120373 | V184: 4.811326504 | W184: 2.833537817 | X184: 0.100204438 | Y184: -0.3154806495 | Z184: 281028.3963 | AA184: 0.80412 | AB184: 0.80412 | AC184: 0.071 | AD184: 1.131302494 | AE184: -0.08350263147 | AF184: 689960219.9 | AG184: 281028396300 | AH184: 0.2455126347
A185: Greece | B185: 2006 | C185: 5409239581 | D185: 3520003481 | E185: 483202014 | F185: 381358706 | G185: 2108736474 | H185: 546706287 | I185: 74443.6372 | J185: 0.051 | L185: 2.801587 | M185: 2.929705 | N185: 2.75 | O185: 41288.02845 | Q185: 0.03195946 | R185: 0.693174 | S185: 97.93746059 | T185: 88.0461775 | U185: 11.33876991 | V185: 4.900330544 | W185: 2.854876995 | X185: 0.1068786085 | Y185: -0.3312933743 | Z185: 314295.4927 | AA185: 0.797141 | AB185: 0.797141 | AC185: 0.051 | AD185: 1.404978871 | AE185: 0.273676377 | AF185: 5409239581 | AG185: 314295492700 | AH185: 1.721068137
A186: Greece | B186: 2007 | C186: 1957669989 | D186: 5311346103 | E186: 416449614 | F186: 799955279 | G186: 3227768386 | H186: 867172824 | I186: 84182.4722 | L186: 2.801587 | M186: 2.929705 | N186: 2.75 | O186: 53220.96276 | Q186: 0.02895001 | R186: 0.719012 | S186: 100 | T186: 90.59511563 | U186: 11.38089657 | V186: 4.972105026 | W186: 2.876376629 | X186: 0.1081786975 | Y186: -0.3647949696 | Z186: 323631.2287 | AA186: 0.730638 | AB186: 0.730638 | AC186: 0.051 | AD186: 2.24621811 | AE186: 0.8412392391 | AF186: 1957669989 | AG186: 323631228700 | AH186: 0.6049076279
A187: Greece | B187: 2008 | C187: 5733408744 | D187: 5309443746 | E187: 310522885 | F187: 724187425 | G187: 3156373493 | H187: 1118359943 | I187: 81399.5832 | K187: 0.61425 | L187: 2.801587 | M187: 2.929705 | N187: 2.75 | O187: 38121.08559 | Q187: 0.04152796 | R187: 0.707951 | S187: 102.4961863 | T187: 94.35734728 | U187: 11.41964722 | V187: 5.039408684 | W187: 2.898038626 | X187: 0.1274776757 | Y187: -0.4123133719 | Z187: 341817.8292 | AA187: 0.682675 | AB187: 0.682675 | AC187: 0.051 | AD187: 2.275308625 | AE187: 0.0290905149 | AF187: 5733408744 | AG187: 341817829200 | AH187: 1.677328756
A188: Greece | B188: 2009 | C188: 2762586782 | D188: 2475606019 | E188: 410374393 | F188: 275073465 | G188: 1555280461 | H188: 234877700 | I188: 70123.1707 | K188: 0.6085 | L188: 2.801587 | M188: 2.929705 | N188: 2.75 | O188: 42100.56188 | Q188: 0.01210074 | R188: 0.704287 | S188: 103.4597243 | T188: 95.49915093 | U188: 11.44382763 | V188: 5.008437157 | W188: 2.919863701 | X188: 0.1070536897 | Y188: -0.3380002379 | Z188: 337268.7866 | AA188: 0.719843 | AB188: 0.719843 | AC188: 0.051 | AD188: 1.01968867 | AE188: -1.255619954 | AF188: 2762586782 | AG188: 337268786600 | AH188: 0.8191053818
A189: Greece | B189: 2010 | C189: 533689272.7 | D189: 3048063164 | E189: 516984770 | F189: 501139708 | G189: 1734442165 | H189: 295496521 | I189: 54980.757 | J189: 0.032 | K189: 0.591 | L189: 2.801587 | M189: 2.929705 | N189: 2.75 | O189: 35025.38749 | Q189: 0.04712982 | R189: 0.722034 | S189: 102.2428598 | T189: 100 | U189: 11.44600487 | V189: 4.874968529 | W189: 2.941852808 | X189: 0.1307141185 | Y189: -0.3428828716 | Z189: 313048.1016 | AA189: 0.755045 | AB189: 0.755045 | AC189: 0.032 | AD189: 1.289555542 | AE189: 0.2698668711 | AF189: 533689272.7 | AG189: 313048101600 | AH189: 0.1704815554
A190: Greece | B190: 2011 | C190: 1092091924 | D190: 3677072799 | E190: 597146239 | F190: 349918254 | G190: 2217153771 | H190: 512854535 | I190: 44319.4042 | J190: 0.032 | K190: 0.551 | L190: 2.166667 | M190: 2.476191 | N190: 2.5 | O190: 29058.0929 | Q190: 0.0332987 | R190: 0.713163 | S190: 102.6861929 | T190: 103.3298641 | U190: 11.42280483 | V190: 4.537156582 | W190: 2.962745428 | X190: 0.1681319177 | Y190: -0.3773196936 | Z190: 290296.6852 | AA190: 0.719355 | AB190: 0.719355 | AC190: 0.032 | AD190: 1.760827794 | AE190: 0.4712722524 | AF190: 1092091924 | AG190: 290296685200 | AH190: 0.3761985512
A191: Greece | B191: 2012 | C191: 1663327173 | D191: 3495120870 | E191: 672421911 | F191: 370112696 | G191: 1691761463 | H191: 760824800 | I191: 35258.2235 | J191: 0.032 | K191: 0.508 | L191: 2.166667 | M191: 2.476191 | N191: 2.25 | O191: 24762.53298 | Q191: 0.0150152 | R191: 0.684663 | S191: 98.51212375 | T191: 104.8813909 | U191: 11.3782568 | V191: 4.257132053 | W191: 2.983786583 | X191: 0.1890330911 | Y191: -0.3839572668 | Z191: 279267.2732 | AA191: 0.778294 | AB191: 0.778294 | AC191: 0.032 | AD191: 1.608046016 | AE191: -0.1527817781 | AF191: 1663327173 | AG191: 279267273200 | AH191: 0.595604044
A192: Greece | B192: 2013 | C192: 2945417938 | D192: 4677095979 | E192: 1062578139 | F192: 488533531 | G192: 2210489565 | H192: 915494744 | I192: 34790.6752 | J192: 0.032 | K192: 0.488 | L192: 2.119048 | M192: 2.442177 | N192: 2.25 | O192: 25850.22755 | Q192: -0.00922165 | R192: 0.631286 | S192: 98.45793725 | T192: 103.9142074 | U192: 11.32129955 | V192: 4.154910564 | W192: 3.004976749 | X192: 0.1901731193 | Y192: -0.3508907259 | Z192: 286168.6393 | AA192: 0.753159 | AB192: 0.753159 | AC192: 0.032 | AD192: 2.170039172 | AE192: 0.5619931564 | AF192: 2945417938 | AG192: 286168639300 | AH192: 1.029259511
A193: Greece | B193: 2014 | C193: 2696796379 | D193: 4341694055 | E193: 595828438 | F193: 525205946 | G193: 2131976634 | H193: 1088683037 | I193: 33747.6867 | J193: 0.032 | K193: 0.49425 | O193: 24567.13641 | Q193: -0.01311209 | R193: 0.611135 | S193: 96.66535675 | T193: 102.5516734 | U193: 11.26472569 | V193: 4.200431824 | W193: 3.026317596 | X193: 0.1881525218 | Y193: -0.3726887107 | Z193: 292335.7415 | AA193: 0.753731 | AB193: 0.753731 | AC193: 0.032 | AD193: 1.970429601 | AE193: -0.1996095718 | AF193: 2696796379 | AG193: 292335741500 | AH193: 0.9224997139
A194: Greece | B194: 2015 | C194: 1268311158 | D194: 1968735929 | E194: 343882140 | F194: 76034985 | G194: 1214874299 | H194: 333944505 | I194: 33651.0152 | J194: 0.032 | K194: 0.508 | O194: 26950.77818 | Q194: -0.01736046 | R194: 0.608907 | S194: 91.32906446 | T194: 100.7713386 | U194: 11.21780014 | V194: 4.241056919 | W194: 3.047810316 | X194: 0.1619686633 | Y194: -0.3131138086 | Z194: 291109.1186 | AA194: 0.901659 | AB194: 0.901659 | AC194: 0.032 | AD194: 0.7500484809 | AE194: -1.22038112 | AF194: 1268311158 | AG194: 291109118600 | AH194: 0.4356823874
A195: Greece | B195: 2016 | C195: 2697870441 | D195: 386660264 | E195: 42368477 | G195: 127063503 | H195: 217228284 | I195: 35444.5657 | J195: 0.032 | K195: 0.52025 | O195: 24614.87823 | Q195: -0.008256576 | R195: 0.600497 | S195: 92.06491837 | T195: 99.93931825 | U195: 11.18371582 | V195: 4.265632629 | W195: 3.069455385 | X195: 0.1608832479 | Y195: -0.3165979087 | Z195: 293902.9558 | AA195: 0.904035 | AB195: 0.904035 | AC195: 0.032 | AD195: =D195/AB195/(Z195*1000000)*100 -> 0.145525917 | AE195: -0.6045225639 | AF195: =C195 -> 2697870441 | AG195: =Z195*1000000 -> 293902955800 | AH195: =AF195/AG195*100 -> 0.9179460048
A196: Greece | B196: 2017 | C196: 3571265225 | I196: 39641.5709 | J196: 0.032 | K196: 0.535 | O196: 32536.55632 | Q196: 0.01121259 | R196: 0.586328 | S196: 93.04378389 | T196: 101.0598733 | U196: 11.15977287 | V196: 4.356856346 | W196: 3.091254234 | X196: 0.1700894982 | Y196: -0.3368521333 | Z196: 307366.2974 | AA196: 0.887397 | AB196: 0.887397 | AC196: 0.032 | AD196: 0 | AE196: =AD196-AD195 -> -0.145525917 | AF196: 3571265225 | AG196: 307366297400 | AH196: 1.161892262
A197: Hungary | B197: 2003 | C197: 4157510420 | D197: 46257889 | E197: 46257889 | I197: 36986.1766 | J197: 0.061 | L197: 2.003968 | M197: 2.395692 | N197: 0.625 | Q197: 0.04661017 | R197: 122.1475 | S197: 85.87057965 | T197: 69.57746479 | U197: 10.14195633 | V197: 4.232926846 | W197: 3.052618265 | X197: 0.4938079715 | Y197: -0.5756496191 | Z197: 156686.9402 | AA197: 224.306667 | AB197: 0.886034 | AC197: 0.061 | AD197: 0.03331981815 | AE197: 0.03331981815 | AF197: 4157510420 | AG197: 156686940200 | AH197: 2.653386693
A198: Hungary | B198: 2004 | C198: 4538099567 | D198: 238613933 | E198: 35945138 | F198: 31282886 | G198: 124444973 | H198: 46940936 | I198: 39364.2801 | L198: 2.003968 | M198: 2.395692 | N198: 1.125 | Q198: 0.06744347 | R198: 128.499086 | S198: 91.78796782 | T198: 74.27001031 | U198: 10.11508083 | V198: 4.190579414 | W198: 3.083392143 | X198: 0.5937544107 | Y198: -0.7051711679 | Z198: 164196.2501 | AA198: 202.745833 | AB198: 0.805365 | AC198: 0.061 | AD198: 0.180442906 | AE198: 0.1471230879 | AF198: 4538099567 | AG198: 164196250100 | AH198: 2.763826558
A199: Hungary | B199: 2005 | C199: 8505362817 | D199: 400905615 | E199: 149110326 | F199: 42841646 | G199: 159490256 | H199: 49463387 | I199: 40969.52 | L199: 2.003968 | M199: 2.395692 | N199: 1.125 | O199: 61110.29263 | Q199: 0.03561517 | R199: 130.929945 | S199: 93.36839229 | T199: 76.91514943 | U199: 10.08646488 | V199: 4.174790859 | W199: 3.114476204 | X199: 0.6307482123 | Y199: -0.714317441 | Z199: 172304.9683 | AA199: 199.5825 | AB199: 0.80412 | AC199: 0.061 | AD199: 0.289349992 | AE199: 0.108907086 | AF199: 8505362817 | AG199: 172304968300 | AH199: 4.9362261
A200: Hungary | B200: 2006 | C200: 1.867872002e+10 | D200: 744852084 | E200: 193769825 | F200: 146056904 | G200: 308028056 | H200: 96997299 | I200: 43263.1288 | J200: 0.061 | L200: 2.003968 | M200: 2.395692 | N200: 1.125 | O200: 80173.92409 | Q200: 0.03930326 | R200: 131.627096 | S200: 89.02079655 | T200: 79.93816558 | U200: 10.05589676 | V200: 4.186631203 | W200: 3.145873785 | X200: 0.7118876576 | Y200: -0.7917063236 | Z200: 184285.4381 | AA200: 210.39 | AB200: 0.797141 | AC200: 0.061 | AD200: 0.507041925 | AE200: 0.217691933 | AF200: 1.867872002e+10 | AG200: 184285438100 | AH200: 10.13575474
... 221 more rows
